Workbook

Sheet Instructions
A1: Dragon City Helper Spreadsheet
A3: This spreadsheet has been written to assist you in managing your Dragon City. All the cells that shouldn't be edited have been locked and protected. You can unprotect them and edit them if you know what you are doing. Actually, you can unprotect and edit them even if you don't know what you're doing :-D
A5: The main areas you will use are the "My Dragons", "Habitats" and "Timers" tabs. I've provided instructions below so as not to clutter the relevant worksheets. You can drag the tabs into whichever order you prefer. I like to have the "Timers" tab at the end for easy access.
A7: My Dragons
A8: Enter your dragon information in columns B thru J as follows:
A9: Column B : Enter the dragon as defined in Dragon City. If you are breeding a dragon that could be any of a number of dragons, use "Unknown" or any other name that tells you that you can only determine it once in the hatchery.
A10: Column C : Enter the name you have given to that dragon. I named mine the same as in B, adding a 2, 3 etc for duplicates. When I have a dragon in storage, I put the hatching time in this cell eg. "17h" if it will take 17 hours to hatch. The breeding/hatching time can be obtained from the "Tables" tab.
A11: Column D : Enter the level of your dragon. I use 0 for dragons in the hatchery, -1 for dragons in the breeding mountain, -2 for dragons in the breeding tree, -3 for dragons in the breeding sanctuary, and -9 for dragon eggs in storage. You can use whatever works for you.
A12: Column E : Enter the star ranking of your dragon (G3, S2, B1 etc).
A13: Column F : Select the type of habitat where you have placed your dragon from the dropdown.
A14: Columns G - J : When you train your dragon, enter the number of the attack you are replacing in the T-column eg to replace Attack 1 with Trainable Attack 4, enter 1 in the T4 column.
A16: When you enter a valid dragon in Column B, Columns K - AM are populated with information from the "Tables" tab. This tells you what category, elements and attacks the dragon has.
A17: Attacks with white backgrounds are useable, yellow indicates the attack is unavailable until the required level is attained and green indicates trainable attacks.
A19: If the background of column B turnes orange, this indicates a duplicate dragon exists in the spreadsheet.
A21: Above the Column Headings are a couple of "Sort" buttons. Click them to sort by that column. I keep mine sorted by level so my strongest dragons are at the top.
A23: Habitats
A24: This spreadsheet lets you know how much space you have available and which habitats you should build next.
A26: Enter the number of each type of habitat you have in columns D and E, D being for habitats on an island and E being for habitats in storage.
A28: TIP: Do not upgrade habitats. Rather build "Big" ones, move the dragons into the new habitat and then sell or store the small habitat. Upgrading costs the same as building but you don't get a refund on the small habitat.
A29: TIP: Keep a small and big habitat of each type in storage so if you get caught with an egg hatching and no habitat available, you can quickly use one from storage rather than having to wait for it to be built.
A31: Timers
A32: This spreadsheet provides you with a warning when things need to be done in Dragon City. The time turns orange and beeps once with 2 minutes to go, beeps twice with 1 minute to go, and turns red and beeps 3 times when time is up. NOTE: The beeps only occur for the top timer.
A34: You can stop and start the timer with the button at the top of the sheet. The timer updates every 5 seconds but sometimes gets stuck so periodically check that the time is changing. If not, stop and start the timer.
A36: Enter the days, hours, minutes and, optionally, seconds in column B rows 4 - 7. Then move the active cell to the desired row in column A rows 15 - 52 and click the "Copy Expiry Time" button. The time will be copied to the active cell.
A38: Enter a description in column B. To help with breeding/hatching planning, start the description for breeding with "Breeding - " and hatching with "Hatchery - " (see examples in spreadsheet). This will colour the descriptions red(ish) and green so you can see when eggs will be added to the hatchery and removed.
A40: After updating expiry times, click the "Sort Timers" button to get them in chronological order.
A42: You can also edit each individual timer to get an exact time. I do this for the Dragon Market, changing the time from 09:00 to 21:00 and back again to do a 12 hour collection.
A44: Tables
A45: This is where the support data is stored, and will need to be updated when new dragons, attacks, habitats etc are added. This spreadsheet is NOT protected so be careful not to make mistakes here.
A47: To add a new dragon, go to the first open row in Column J and add the information into columns J - Y.
A49: The colour coding for column J is: White = breedable & not owned, Green = owned, Mauve = non-breedable and not owned.
A51: Column X indicates breeding status: 0 = non-breedable, 1 = breedable. Yellow indicates breedable at certain sanctuary levels.
A53: Above the dragon table are a number of sort buttons. Click them to get the table in the desired order. The "Sort Habitat" is useful for finding dragons with specific habitats as required by some quests or for possible breeding results in the Ancient World.
A55: Info
A56: Provides information about farming and feeding requirements.
A58: Single Element Breeding
A59: This sheet shows you which dragons you have (green) or need to be bred (white). This is based on levels 4 - 9.
A61: TIP: Do not feed single element dragons above level 9 unless you really need to for tournaments etc because you often need lower level dragons to breed some hybrids. It also makes for easier breeding of the dragons in the sheet because above 9, additional breeding options are added.
A63: Ancient World
A64: This is a work in progress.

Sheet My Dragons
A1: Dragon City - My Dragons | AB1: Legend
AB2: Useable | AC2: Trainable | AD2: Unavailable
P3: Combat
L4: Elements | P4: Attack | AB4: Trainable
A5: Number | B5: Dragon | C5: Name | D5: Level | E5: Rank | F5: Habitat | G5: T1 | H5: T2 | I5: T3 | J5: T4 | K5: Category | L5: 1 | M5: 2 | N5: 3 | O5: 4 | P5: 1 | S5: 2 | V5: 3 | Y5: 4 | AB5: 1 | AE5: 2 | AH5: 3 | AK5: 4
A6: 1 | B6: Flame | C6: Xili | D6: 4 | F6: Flame | K6: =IF(ISBLANK($B6),0,VLOOKUP($B6,FullDragonTable,2,0)) -> 1 | L6: =IF(ISBLANK($B6),"",IF(ISBLANK(VLOOKUP($B6,FullDragonTable,3,0)),"",VLOOKUP($B6,FullDragonTable,3,0))) -> Flame | M6: =IF(ISBLANK($B6),"",IF(ISBLANK(VLOOKUP($B6,FullDragonTable,4,0)),"",VLOOKUP($B6,FullDragonTable,4,0))) ->  | N6: =IF(ISBLANK($B6),"",IF(ISBLANK(VLOOKUP($B6,FullDragonTable,5,0)),"",VLOOKUP($B6,FullDragonTable,5,0))) ->  | O6: =IF(ISBLANK($B6),"",IF(ISBLANK(VLOOKUP($B6,FullDragonTable,6,0)),"",VLOOKUP($B6,FullDragonTable,6,0))) ->  | P6: =IF(ISBLANK($B6),"",VLOOKUP($B6,FullDragonTable,7,0)) -> Punch | Q6: =IF(ISBLANK($B6),"",VLOOKUP(P6,AttackTable,2,0)) -> Physical | R6: =IF(ISBLANK($B6),"",VLOOKUP(P6,AttackTable,3,0)) -> 338 | S6: =IF(ISBLANK($B6),"",VLOOKUP($B6,FullDragonTable,8,0)) -> Lava Balls | T6: =IF(ISBLANK($B6),"",VLOOKUP(S6,AttackTable,2,0)) -> Flame | U6: =IF(ISBLANK($B6),"",VLOOKUP(S6,AttackTable,3,0)) -> 550 | V6: =IF(ISBLANK($B6),"",VLOOKUP($B6,FullDragonTable,9,0)) -> Flaming Arrows | W6: =IF(ISBLANK($B6),"",VLOOKUP(V6,AttackTable,2,0)) -> Flame | X6: =IF(ISBLANK($B6),"",VLOOKUP(V6,AttackTable,3,0)) -> 650 | Y6: =IF(ISBLANK($B6),"",VLOOKUP($B6,FullDragonTable,10,0)) -> Nuclear Hit | Z6: =IF(ISBLANK($B6),"",VLOOKUP(Y6,AttackTable,2,0)) -> Flame | AA6: =IF(ISBLANK($B6),"",VLOOKUP(Y6,AttackTable,3,0)) -> 1050 | AB6: =IF(ISBLANK($B6),"",VLOOKUP($B6,FullDragonTable,11,0)) -> Hard Charge | AC6: =IF(ISBLANK($B6),"",VLOOKUP(AB6,AttackTable,2,0)) -> Physical | AD6: =IF(ISBLANK($B6),"",VLOOKUP(AB6,AttackTable,3,0)) -> 488 | AE6: =IF(ISBLANK($B6),"",VLOOKUP($B6,FullDragonTable,12,0)) -> Head Butt | AF6: =IF(ISBLANK($B6),"",VLOOKUP(AE6,AttackTable,2,0)) -> Physical | AG6: =IF(ISBLANK($B6),"",VLOOKUP(AE6,AttackTable,3,0)) -> 788 | AH6: =IF(ISBLANK($B6),"",VLOOKUP($B6,FullDragonTable,13,0)) -> Flamethrower | AI6: =IF(ISBLANK($B6),"",VLOOKUP(AH6,AttackTable,2,0)) -> Flame | AJ6: =IF(ISBLANK($B6),"",VLOOKUP(AH6,AttackTable,3,0)) -> 1200 | AK6: =IF(ISBLANK($B6),"",VLOOKUP($B6,FullDragonTable,14,0)) -> Magma Storm | AL6: =IF(ISBLANK($B6),"",VLOOKUP(AK6,AttackTable,2,0)) -> Flame | AM6: =IF(ISBLANK($B6),"",VLOOKUP(AK6,AttackTable,3,0)) -> 1350
A7: 2 | B7: Terra | C7: Bobo | D7: 4 | F7: Terra | K7: =IF(ISBLANK($B7),0,VLOOKUP($B7,FullDragonTable,2,0)) -> 1 | L7: Terra | P7: Punch | Q7: Physical | R7: 338 | S7: Earthquake | T7: Terra | U7: 550 | V7: Meteor Shower | W7: Terra | X7: 650 | Y7: Tumble Weed | Z7: Nature | AA7: 1050 | AB7: Hard Charge | AC7: Physical | AD7: 488 | AE7: Tumble Weed | AF7: Nature | AG7: 1050 | AH7: Judo Kick | AI7: Physical | AJ7: 863 | AK7: Sand Storm | AL7: Terra | AM7: 1350
A8: 3 | K8: =IF(ISBLANK($B8),0,VLOOKUP($B8,FullDragonTable,2,0)) -> 0
A9: 4 | K9: =IF(ISBLANK($B9),0,VLOOKUP($B9,FullDragonTable,2,0)) -> 0
A10: 5 | K10: =IF(ISBLANK($B10),0,VLOOKUP($B10,FullDragonTable,2,0)) -> 0
A11: 6 | K11: =IF(ISBLANK($B11),0,VLOOKUP($B11,FullDragonTable,2,0)) -> 0
A12: 7 | K12: =IF(ISBLANK($B12),0,VLOOKUP($B12,FullDragonTable,2,0)) -> 0
A13: 8 | K13: =IF(ISBLANK($B13),0,VLOOKUP($B13,FullDragonTable,2,0)) -> 0
A14: 9 | K14: =IF(ISBLANK($B14),0,VLOOKUP($B14,FullDragonTable,2,0)) -> 0
A15: 10 | K15: =IF(ISBLANK($B15),0,VLOOKUP($B15,FullDragonTable,2,0)) -> 0
A16: 11 | K16: =IF(ISBLANK($B16),0,VLOOKUP($B16,FullDragonTable,2,0)) -> 0
A17: 12 | K17: =IF(ISBLANK($B17),0,VLOOKUP($B17,FullDragonTable,2,0)) -> 0
A18: 13 | K18: =IF(ISBLANK($B18),0,VLOOKUP($B18,FullDragonTable,2,0)) -> 0
A19: 14 | K19: =IF(ISBLANK($B19),0,VLOOKUP($B19,FullDragonTable,2,0)) -> 0
A20: 15 | K20: =IF(ISBLANK($B20),0,VLOOKUP($B20,FullDragonTable,2,0)) -> 0
A21: 16 | K21: =IF(ISBLANK($B21),0,VLOOKUP($B21,FullDragonTable,2,0)) -> 0
A22: 17 | K22: =IF(ISBLANK($B22),0,VLOOKUP($B22,FullDragonTable,2,0)) -> 0
A23: 18 | K23: =IF(ISBLANK($B23),0,VLOOKUP($B23,FullDragonTable,2,0)) -> 0
A24: 19 | K24: =IF(ISBLANK($B24),0,VLOOKUP($B24,FullDragonTable,2,0)) -> 0
A25: 20 | K25: =IF(ISBLANK($B25),0,VLOOKUP($B25,FullDragonTable,2,0)) -> 0
A26: 21 | K26: =IF(ISBLANK($B26),0,VLOOKUP($B26,FullDragonTable,2,0)) -> 0
A27: 22 | K27: =IF(ISBLANK($B27),0,VLOOKUP($B27,FullDragonTable,2,0)) -> 0
A28: 23 | K28: =IF(ISBLANK($B28),0,VLOOKUP($B28,FullDragonTable,2,0)) -> 0
A29: 24 | K29: =IF(ISBLANK($B29),0,VLOOKUP($B29,FullDragonTable,2,0)) -> 0
A30: 25 | K30: =IF(ISBLANK($B30),0,VLOOKUP($B30,FullDragonTable,2,0)) -> 0
A31: 26 | K31: =IF(ISBLANK($B31),0,VLOOKUP($B31,FullDragonTable,2,0)) -> 0
A32: 27 | K32: =IF(ISBLANK($B32),0,VLOOKUP($B32,FullDragonTable,2,0)) -> 0
A33: 28 | K33: =IF(ISBLANK($B33),0,VLOOKUP($B33,FullDragonTable,2,0)) -> 0
A34: 29 | K34: =IF(ISBLANK($B34),0,VLOOKUP($B34,FullDragonTable,2,0)) -> 0
A35: 30 | K35: =IF(ISBLANK($B35),0,VLOOKUP($B35,FullDragonTable,2,0)) -> 0
A36: 31 | K36: =IF(ISBLANK($B36),0,VLOOKUP($B36,FullDragonTable,2,0)) -> 0
A37: 32 | K37: =IF(ISBLANK($B37),0,VLOOKUP($B37,FullDragonTable,2,0)) -> 0
A38: 33 | K38: =IF(ISBLANK($B38),0,VLOOKUP($B38,FullDragonTable,2,0)) -> 0
A39: 34 | K39: =IF(ISBLANK($B39),0,VLOOKUP($B39,FullDragonTable,2,0)) -> 0
A40: 35 | K40: =IF(ISBLANK($B40),0,VLOOKUP($B40,FullDragonTable,2,0)) -> 0
A41: 36 | K41: =IF(ISBLANK($B41),0,VLOOKUP($B41,FullDragonTable,2,0)) -> 0
A42: 37 | K42: =IF(ISBLANK($B42),0,VLOOKUP($B42,FullDragonTable,2,0)) -> 0
A43: 38 | K43: =IF(ISBLANK($B43),0,VLOOKUP($B43,FullDragonTable,2,0)) -> 0
A44: 39 | K44: =IF(ISBLANK($B44),0,VLOOKUP($B44,FullDragonTable,2,0)) -> 0
A45: 40 | K45: =IF(ISBLANK($B45),0,VLOOKUP($B45,FullDragonTable,2,0)) -> 0
A46: 41 | K46: =IF(ISBLANK($B46),0,VLOOKUP($B46,FullDragonTable,2,0)) -> 0
A47: 42 | K47: =IF(ISBLANK($B47),0,VLOOKUP($B47,FullDragonTable,2,0)) -> 0
A48: 43 | K48: =IF(ISBLANK($B48),0,VLOOKUP($B48,FullDragonTable,2,0)) -> 0
A49: 44 | K49: =IF(ISBLANK($B49),0,VLOOKUP($B49,FullDragonTable,2,0)) -> 0
A50: 45 | K50: =IF(ISBLANK($B50),0,VLOOKUP($B50,FullDragonTable,2,0)) -> 0
A51: 46 | K51: =IF(ISBLANK($B51),0,VLOOKUP($B51,FullDragonTable,2,0)) -> 0
A52: 47 | K52: =IF(ISBLANK($B52),0,VLOOKUP($B52,FullDragonTable,2,0)) -> 0
A53: 48 | K53: =IF(ISBLANK($B53),0,VLOOKUP($B53,FullDragonTable,2,0)) -> 0
A54: 49 | K54: =IF(ISBLANK($B54),0,VLOOKUP($B54,FullDragonTable,2,0)) -> 0
A55: 50 | K55: =IF(ISBLANK($B55),0,VLOOKUP($B55,FullDragonTable,2,0)) -> 0
A56: 51 | K56: =IF(ISBLANK($B56),0,VLOOKUP($B56,FullDragonTable,2,0)) -> 0
A57: 52 | K57: =IF(ISBLANK($B57),0,VLOOKUP($B57,FullDragonTable,2,0)) -> 0
A58: 53 | K58: =IF(ISBLANK($B58),0,VLOOKUP($B58,FullDragonTable,2,0)) -> 0
A59: 54 | K59: =IF(ISBLANK($B59),0,VLOOKUP($B59,FullDragonTable,2,0)) -> 0
A60: 55 | K60: =IF(ISBLANK($B60),0,VLOOKUP($B60,FullDragonTable,2,0)) -> 0
A61: 56 | K61: =IF(ISBLANK($B61),0,VLOOKUP($B61,FullDragonTable,2,0)) -> 0
A62: 57 | K62: =IF(ISBLANK($B62),0,VLOOKUP($B62,FullDragonTable,2,0)) -> 0
A63: 58 | K63: =IF(ISBLANK($B63),0,VLOOKUP($B63,FullDragonTable,2,0)) -> 0
A64: 59 | K64: =IF(ISBLANK($B64),0,VLOOKUP($B64,FullDragonTable,2,0)) -> 0
A65: 60 | K65: =IF(ISBLANK($B65),0,VLOOKUP($B65,FullDragonTable,2,0)) -> 0
A66: 61 | K66: =IF(ISBLANK($B66),0,VLOOKUP($B66,FullDragonTable,2,0)) -> 0
A67: 62 | K67: =IF(ISBLANK($B67),0,VLOOKUP($B67,FullDragonTable,2,0)) -> 0
A68: 63 | K68: =IF(ISBLANK($B68),0,VLOOKUP($B68,FullDragonTable,2,0)) -> 0
A69: 64 | K69: =IF(ISBLANK($B69),0,VLOOKUP($B69,FullDragonTable,2,0)) -> 0
A70: 65 | K70: =IF(ISBLANK($B70),0,VLOOKUP($B70,FullDragonTable,2,0)) -> 0 | L70: =IF(ISBLANK($B70),"",IF(ISBLANK(VLOOKUP($B70,FullDragonTable,3,0)),"",VLOOKUP($B70,FullDragonTable,3,0))) ->  | M70: =IF(ISBLANK($B70),"",IF(ISBLANK(VLOOKUP($B70,FullDragonTable,4,0)),"",VLOOKUP($B70,FullDragonTable,4,0))) ->  | N70: =IF(ISBLANK($B70),"",IF(ISBLANK(VLOOKUP($B70,FullDragonTable,5,0)),"",VLOOKUP($B70,FullDragonTable,5,0))) ->  | O70: =IF(ISBLANK($B70),"",IF(ISBLANK(VLOOKUP($B70,FullDragonTable,6,0)),"",VLOOKUP($B70,FullDragonTable,6,0))) ->  | P70: =IF(ISBLANK($B70),"",VLOOKUP($B70,FullDragonTable,7,0)) ->  | Q70: =IF(ISBLANK($B70),"",VLOOKUP(P70,AttackTable,2,0)) ->  | R70: =IF(ISBLANK($B70),"",VLOOKUP(P70,AttackTable,3,0)) ->  | S70: =IF(ISBLANK($B70),"",VLOOKUP($B70,FullDragonTable,8,0)) ->  | T70: =IF(ISBLANK($B70),"",VLOOKUP(S70,AttackTable,2,0)) ->  | U70: =IF(ISBLANK($B70),"",VLOOKUP(S70,AttackTable,3,0)) ->  | V70: =IF(ISBLANK($B70),"",VLOOKUP($B70,FullDragonTable,9,0)) ->  | W70: =IF(ISBLANK($B70),"",VLOOKUP(V70,AttackTable,2,0)) ->  | X70: =IF(ISBLANK($B70),"",VLOOKUP(V70,AttackTable,3,0)) ->  | Y70: =IF(ISBLANK($B70),"",VLOOKUP($B70,FullDragonTable,10,0)) ->  | Z70: =IF(ISBLANK($B70),"",VLOOKUP(Y70,AttackTable,2,0)) ->  | AA70: =IF(ISBLANK($B70),"",VLOOKUP(Y70,AttackTable,3,0)) ->  | AB70: =IF(ISBLANK($B70),"",VLOOKUP($B70,FullDragonTable,11,0)) ->  | AC70: =IF(ISBLANK($B70),"",VLOOKUP(AB70,AttackTable,2,0)) ->  | AD70: =IF(ISBLANK($B70),"",VLOOKUP(AB70,AttackTable,3,0)) ->  | AE70: =IF(ISBLANK($B70),"",VLOOKUP($B70,FullDragonTable,12,0)) ->  | AF70: =IF(ISBLANK($B70),"",VLOOKUP(AE70,AttackTable,2,0)) ->  | AG70: =IF(ISBLANK($B70),"",VLOOKUP(AE70,AttackTable,3,0)) ->  | AH70: =IF(ISBLANK($B70),"",VLOOKUP($B70,FullDragonTable,13,0)) ->  | AI70: =IF(ISBLANK($B70),"",VLOOKUP(AH70,AttackTable,2,0)) ->  | AJ70: =IF(ISBLANK($B70),"",VLOOKUP(AH70,AttackTable,3,0)) ->  | AK70: =IF(ISBLANK($B70),"",VLOOKUP($B70,FullDragonTable,14,0)) ->  | AL70: =IF(ISBLANK($B70),"",VLOOKUP(AK70,AttackTable,2,0)) ->  | AM70: =IF(ISBLANK($B70),"",VLOOKUP(AK70,AttackTable,3,0)) -> 
A71: 66 | K71: =IF(ISBLANK($B71),0,VLOOKUP($B71,FullDragonTable,2,0)) -> 0
A72: 67 | K72: =IF(ISBLANK($B72),0,VLOOKUP($B72,FullDragonTable,2,0)) -> 0
A73: 68 | K73: =IF(ISBLANK($B73),0,VLOOKUP($B73,FullDragonTable,2,0)) -> 0
A74: 69 | K74: =IF(ISBLANK($B74),0,VLOOKUP($B74,FullDragonTable,2,0)) -> 0
A75: 70 | K75: =IF(ISBLANK($B75),0,VLOOKUP($B75,FullDragonTable,2,0)) -> 0
A76: 71 | K76: =IF(ISBLANK($B76),0,VLOOKUP($B76,FullDragonTable,2,0)) -> 0
A77: 72 | K77: =IF(ISBLANK($B77),0,VLOOKUP($B77,FullDragonTable,2,0)) -> 0
A78: 73 | K78: =IF(ISBLANK($B78),0,VLOOKUP($B78,FullDragonTable,2,0)) -> 0
A79: 74 | K79: =IF(ISBLANK($B79),0,VLOOKUP($B79,FullDragonTable,2,0)) -> 0
A80: 75 | K80: =IF(ISBLANK($B80),0,VLOOKUP($B80,FullDragonTable,2,0)) -> 0
A81: 76 | K81: =IF(ISBLANK($B81),0,VLOOKUP($B81,FullDragonTable,2,0)) -> 0
A82: 77 | K82: =IF(ISBLANK($B82),0,VLOOKUP($B82,FullDragonTable,2,0)) -> 0
A83: 78 | K83: =IF(ISBLANK($B83),0,VLOOKUP($B83,FullDragonTable,2,0)) -> 0
A84: 79 | K84: =IF(ISBLANK($B84),0,VLOOKUP($B84,FullDragonTable,2,0)) -> 0
A85: 80 | K85: =IF(ISBLANK($B85),0,VLOOKUP($B85,FullDragonTable,2,0)) -> 0
A86: 81 | K86: =IF(ISBLANK($B86),0,VLOOKUP($B86,FullDragonTable,2,0)) -> 0
A87: 82 | K87: =IF(ISBLANK($B87),0,VLOOKUP($B87,FullDragonTable,2,0)) -> 0
A88: 83 | K88: =IF(ISBLANK($B88),0,VLOOKUP($B88,FullDragonTable,2,0)) -> 0
A89: 84 | K89: =IF(ISBLANK($B89),0,VLOOKUP($B89,FullDragonTable,2,0)) -> 0
A90: 85 | K90: =IF(ISBLANK($B90),0,VLOOKUP($B90,FullDragonTable,2,0)) -> 0
A91: 86 | K91: =IF(ISBLANK($B91),0,VLOOKUP($B91,FullDragonTable,2,0)) -> 0
A92: 87 | K92: =IF(ISBLANK($B92),0,VLOOKUP($B92,FullDragonTable,2,0)) -> 0
A93: 88 | K93: =IF(ISBLANK($B93),0,VLOOKUP($B93,FullDragonTable,2,0)) -> 0
A94: 89 | K94: =IF(ISBLANK($B94),0,VLOOKUP($B94,FullDragonTable,2,0)) -> 0
A95: 90 | K95: =IF(ISBLANK($B95),0,VLOOKUP($B95,FullDragonTable,2,0)) -> 0
A96: 91 | K96: =IF(ISBLANK($B96),0,VLOOKUP($B96,FullDragonTable,2,0)) -> 0
A97: 92 | K97: =IF(ISBLANK($B97),0,VLOOKUP($B97,FullDragonTable,2,0)) -> 0
A98: 93 | K98: =IF(ISBLANK($B98),0,VLOOKUP($B98,FullDragonTable,2,0)) -> 0
A99: 94 | K99: =IF(ISBLANK($B99),0,VLOOKUP($B99,FullDragonTable,2,0)) -> 0
A100: 95 | K100: =IF(ISBLANK($B100),0,VLOOKUP($B100,FullDragonTable,2,0)) -> 0
A101: 96 | K101: =IF(ISBLANK($B101),0,VLOOKUP($B101,FullDragonTable,2,0)) -> 0
A102: 97 | K102: =IF(ISBLANK($B102),0,VLOOKUP($B102,FullDragonTable,2,0)) -> 0
A103: 98 | K103: =IF(ISBLANK($B103),0,VLOOKUP($B103,FullDragonTable,2,0)) -> 0
A104: 99 | K104: =IF(ISBLANK($B104),0,VLOOKUP($B104,FullDragonTable,2,0)) -> 0
A105: 100 | K105: =IF(ISBLANK($B105),0,VLOOKUP($B105,FullDragonTable,2,0)) -> 0
A106: 101 | K106: =IF(ISBLANK($B106),0,VLOOKUP($B106,FullDragonTable,2,0)) -> 0
A107: 102 | K107: =IF(ISBLANK($B107),0,VLOOKUP($B107,FullDragonTable,2,0)) -> 0
A108: 103 | K108: =IF(ISBLANK($B108),0,VLOOKUP($B108,FullDragonTable,2,0)) -> 0
A109: 104 | K109: =IF(ISBLANK($B109),0,VLOOKUP($B109,FullDragonTable,2,0)) -> 0
A110: 105 | K110: =IF(ISBLANK($B110),0,VLOOKUP($B110,FullDragonTable,2,0)) -> 0
A111: 106 | K111: =IF(ISBLANK($B111),0,VLOOKUP($B111,FullDragonTable,2,0)) -> 0
A112: 107 | K112: =IF(ISBLANK($B112),0,VLOOKUP($B112,FullDragonTable,2,0)) -> 0
A113: 108 | K113: =IF(ISBLANK($B113),0,VLOOKUP($B113,FullDragonTable,2,0)) -> 0
A114: 109 | K114: =IF(ISBLANK($B114),0,VLOOKUP($B114,FullDragonTable,2,0)) -> 0
A115: 110 | K115: =IF(ISBLANK($B115),0,VLOOKUP($B115,FullDragonTable,2,0)) -> 0
A116: 111 | K116: =IF(ISBLANK($B116),0,VLOOKUP($B116,FullDragonTable,2,0)) -> 0
A117: 112 | K117: =IF(ISBLANK($B117),0,VLOOKUP($B117,FullDragonTable,2,0)) -> 0
A118: 113 | K118: =IF(ISBLANK($B118),0,VLOOKUP($B118,FullDragonTable,2,0)) -> 0
A119: 114 | K119: =IF(ISBLANK($B119),0,VLOOKUP($B119,FullDragonTable,2,0)) -> 0
A120: 115 | K120: =IF(ISBLANK($B120),0,VLOOKUP($B120,FullDragonTable,2,0)) -> 0
A121: 116 | K121: =IF(ISBLANK($B121),0,VLOOKUP($B121,FullDragonTable,2,0)) -> 0
A122: 117 | K122: =IF(ISBLANK($B122),0,VLOOKUP($B122,FullDragonTable,2,0)) -> 0
A123: 118 | K123: =IF(ISBLANK($B123),0,VLOOKUP($B123,FullDragonTable,2,0)) -> 0
A124: 119 | K124: =IF(ISBLANK($B124),0,VLOOKUP($B124,FullDragonTable,2,0)) -> 0
A125: 120 | K125: =IF(ISBLANK($B125),0,VLOOKUP($B125,FullDragonTable,2,0)) -> 0
A126: 121 | K126: =IF(ISBLANK($B126),0,VLOOKUP($B126,FullDragonTable,2,0)) -> 0
A127: 122 | K127: =IF(ISBLANK($B127),0,VLOOKUP($B127,FullDragonTable,2,0)) -> 0
A128: 123 | K128: =IF(ISBLANK($B128),0,VLOOKUP($B128,FullDragonTable,2,0)) -> 0
A129: 124 | K129: =IF(ISBLANK($B129),0,VLOOKUP($B129,FullDragonTable,2,0)) -> 0
A130: 125 | K130: =IF(ISBLANK($B130),0,VLOOKUP($B130,FullDragonTable,2,0)) -> 0
A131: 126 | K131: =IF(ISBLANK($B131),0,VLOOKUP($B131,FullDragonTable,2,0)) -> 0
A132: 127 | K132: =IF(ISBLANK($B132),0,VLOOKUP($B132,FullDragonTable,2,0)) -> 0
A133: 128 | K133: =IF(ISBLANK($B133),0,VLOOKUP($B133,FullDragonTable,2,0)) -> 0
A134: 129 | K134: =IF(ISBLANK($B134),0,VLOOKUP($B134,FullDragonTable,2,0)) -> 0 | L134: =IF(ISBLANK($B134),"",IF(ISBLANK(VLOOKUP($B134,FullDragonTable,3,0)),"",VLOOKUP($B134,FullDragonTable,3,0))) ->  | M134: =IF(ISBLANK($B134),"",IF(ISBLANK(VLOOKUP($B134,FullDragonTable,4,0)),"",VLOOKUP($B134,FullDragonTable,4,0))) ->  | N134: =IF(ISBLANK($B134),"",IF(ISBLANK(VLOOKUP($B134,FullDragonTable,5,0)),"",VLOOKUP($B134,FullDragonTable,5,0))) ->  | O134: =IF(ISBLANK($B134),"",IF(ISBLANK(VLOOKUP($B134,FullDragonTable,6,0)),"",VLOOKUP($B134,FullDragonTable,6,0))) ->  | P134: =IF(ISBLANK($B134),"",VLOOKUP($B134,FullDragonTable,7,0)) ->  | Q134: =IF(ISBLANK($B134),"",VLOOKUP(P134,AttackTable,2,0)) ->  | R134: =IF(ISBLANK($B134),"",VLOOKUP(P134,AttackTable,3,0)) ->  | S134: =IF(ISBLANK($B134),"",VLOOKUP($B134,FullDragonTable,8,0)) ->  | T134: =IF(ISBLANK($B134),"",VLOOKUP(S134,AttackTable,2,0)) ->  | U134: =IF(ISBLANK($B134),"",VLOOKUP(S134,AttackTable,3,0)) ->  | V134: =IF(ISBLANK($B134),"",VLOOKUP($B134,FullDragonTable,9,0)) ->  | W134: =IF(ISBLANK($B134),"",VLOOKUP(V134,AttackTable,2,0)) ->  | X134: =IF(ISBLANK($B134),"",VLOOKUP(V134,AttackTable,3,0)) ->  | Y134: =IF(ISBLANK($B134),"",VLOOKUP($B134,FullDragonTable,10,0)) ->  | Z134: =IF(ISBLANK($B134),"",VLOOKUP(Y134,AttackTable,2,0)) ->  | AA134: =IF(ISBLANK($B134),"",VLOOKUP(Y134,AttackTable,3,0)) ->  | AB134: =IF(ISBLANK($B134),"",VLOOKUP($B134,FullDragonTable,11,0)) ->  | AC134: =IF(ISBLANK($B134),"",VLOOKUP(AB134,AttackTable,2,0)) ->  | AD134: =IF(ISBLANK($B134),"",VLOOKUP(AB134,AttackTable,3,0)) ->  | AE134: =IF(ISBLANK($B134),"",VLOOKUP($B134,FullDragonTable,12,0)) ->  | AF134: =IF(ISBLANK($B134),"",VLOOKUP(AE134,AttackTable,2,0)) ->  | AG134: =IF(ISBLANK($B134),"",VLOOKUP(AE134,AttackTable,3,0)) ->  | AH134: =IF(ISBLANK($B134),"",VLOOKUP($B134,FullDragonTable,13,0)) ->  | AI134: =IF(ISBLANK($B134),"",VLOOKUP(AH134,AttackTable,2,0)) ->  | AJ134: =IF(ISBLANK($B134),"",VLOOKUP(AH134,AttackTable,3,0)) ->  | AK134: =IF(ISBLANK($B134),"",VLOOKUP($B134,FullDragonTable,14,0)) ->  | AL134: =IF(ISBLANK($B134),"",VLOOKUP(AK134,AttackTable,2,0)) ->  | AM134: =IF(ISBLANK($B134),"",VLOOKUP(AK134,AttackTable,3,0)) -> 
A135: 130 | K135: =IF(ISBLANK($B135),0,VLOOKUP($B135,FullDragonTable,2,0)) -> 0
A136: 131 | K136: =IF(ISBLANK($B136),0,VLOOKUP($B136,FullDragonTable,2,0)) -> 0
A137: 132 | K137: =IF(ISBLANK($B137),0,VLOOKUP($B137,FullDragonTable,2,0)) -> 0
A138: 133 | K138: =IF(ISBLANK($B138),0,VLOOKUP($B138,FullDragonTable,2,0)) -> 0
A139: 134 | K139: =IF(ISBLANK($B139),0,VLOOKUP($B139,FullDragonTable,2,0)) -> 0
A140: 135 | K140: =IF(ISBLANK($B140),0,VLOOKUP($B140,FullDragonTable,2,0)) -> 0
A141: 136 | K141: =IF(ISBLANK($B141),0,VLOOKUP($B141,FullDragonTable,2,0)) -> 0
A142: 137 | K142: =IF(ISBLANK($B142),0,VLOOKUP($B142,FullDragonTable,2,0)) -> 0
A143: 138 | K143: =IF(ISBLANK($B143),0,VLOOKUP($B143,FullDragonTable,2,0)) -> 0
A144: 139 | K144: =IF(ISBLANK($B144),0,VLOOKUP($B144,FullDragonTable,2,0)) -> 0
A145: 140 | K145: =IF(ISBLANK($B145),0,VLOOKUP($B145,FullDragonTable,2,0)) -> 0
A146: 141 | K146: =IF(ISBLANK($B146),0,VLOOKUP($B146,FullDragonTable,2,0)) -> 0
A147: 142 | K147: =IF(ISBLANK($B147),0,VLOOKUP($B147,FullDragonTable,2,0)) -> 0
A148: 143 | K148: =IF(ISBLANK($B148),0,VLOOKUP($B148,FullDragonTable,2,0)) -> 0
A149: 144 | K149: =IF(ISBLANK($B149),0,VLOOKUP($B149,FullDragonTable,2,0)) -> 0
A150: 145 | K150: =IF(ISBLANK($B150),0,VLOOKUP($B150,FullDragonTable,2,0)) -> 0
A151: 146 | K151: =IF(ISBLANK($B151),0,VLOOKUP($B151,FullDragonTable,2,0)) -> 0
A152: 147 | K152: =IF(ISBLANK($B152),0,VLOOKUP($B152,FullDragonTable,2,0)) -> 0
A153: 148 | K153: =IF(ISBLANK($B153),0,VLOOKUP($B153,FullDragonTable,2,0)) -> 0
A154: 149 | K154: =IF(ISBLANK($B154),0,VLOOKUP($B154,FullDragonTable,2,0)) -> 0
A155: 150 | K155: =IF(ISBLANK($B155),0,VLOOKUP($B155,FullDragonTable,2,0)) -> 0
A156: 151 | K156: =IF(ISBLANK($B156),0,VLOOKUP($B156,FullDragonTable,2,0)) -> 0
A157: 152 | K157: =IF(ISBLANK($B157),0,VLOOKUP($B157,FullDragonTable,2,0)) -> 0
A158: 153 | K158: =IF(ISBLANK($B158),0,VLOOKUP($B158,FullDragonTable,2,0)) -> 0
A159: 154 | K159: =IF(ISBLANK($B159),0,VLOOKUP($B159,FullDragonTable,2,0)) -> 0
A160: 155 | K160: =IF(ISBLANK($B160),0,VLOOKUP($B160,FullDragonTable,2,0)) -> 0
A161: 156 | K161: =IF(ISBLANK($B161),0,VLOOKUP($B161,FullDragonTable,2,0)) -> 0
A162: 157 | K162: =IF(ISBLANK($B162),0,VLOOKUP($B162,FullDragonTable,2,0)) -> 0
A163: 158 | K163: =IF(ISBLANK($B163),0,VLOOKUP($B163,FullDragonTable,2,0)) -> 0
A164: 159 | K164: =IF(ISBLANK($B164),0,VLOOKUP($B164,FullDragonTable,2,0)) -> 0
A165: 160 | K165: =IF(ISBLANK($B165),0,VLOOKUP($B165,FullDragonTable,2,0)) -> 0
A166: 161 | K166: =IF(ISBLANK($B166),0,VLOOKUP($B166,FullDragonTable,2,0)) -> 0
A167: 162 | K167: =IF(ISBLANK($B167),0,VLOOKUP($B167,FullDragonTable,2,0)) -> 0
A168: 163 | K168: =IF(ISBLANK($B168),0,VLOOKUP($B168,FullDragonTable,2,0)) -> 0
A169: 164 | K169: =IF(ISBLANK($B169),0,VLOOKUP($B169,FullDragonTable,2,0)) -> 0
A170: 165 | K170: =IF(ISBLANK($B170),0,VLOOKUP($B170,FullDragonTable,2,0)) -> 0
A171: 166 | K171: =IF(ISBLANK($B171),0,VLOOKUP($B171,FullDragonTable,2,0)) -> 0
A172: 167 | K172: =IF(ISBLANK($B172),0,VLOOKUP($B172,FullDragonTable,2,0)) -> 0
A173: 168 | K173: =IF(ISBLANK($B173),0,VLOOKUP($B173,FullDragonTable,2,0)) -> 0
A174: 169 | K174: =IF(ISBLANK($B174),0,VLOOKUP($B174,FullDragonTable,2,0)) -> 0
A175: 170 | K175: =IF(ISBLANK($B175),0,VLOOKUP($B175,FullDragonTable,2,0)) -> 0
A176: 171 | K176: =IF(ISBLANK($B176),0,VLOOKUP($B176,FullDragonTable,2,0)) -> 0
A177: 172 | K177: =IF(ISBLANK($B177),0,VLOOKUP($B177,FullDragonTable,2,0)) -> 0
A178: 173 | K178: =IF(ISBLANK($B178),0,VLOOKUP($B178,FullDragonTable,2,0)) -> 0
A179: 174 | K179: =IF(ISBLANK($B179),0,VLOOKUP($B179,FullDragonTable,2,0)) -> 0
A180: 175 | K180: =IF(ISBLANK($B180),0,VLOOKUP($B180,FullDragonTable,2,0)) -> 0
A181: 176 | K181: =IF(ISBLANK($B181),0,VLOOKUP($B181,FullDragonTable,2,0)) -> 0
A182: 177 | K182: =IF(ISBLANK($B182),0,VLOOKUP($B182,FullDragonTable,2,0)) -> 0
A183: 178 | K183: =IF(ISBLANK($B183),0,VLOOKUP($B183,FullDragonTable,2,0)) -> 0
A184: 179 | K184: =IF(ISBLANK($B184),0,VLOOKUP($B184,FullDragonTable,2,0)) -> 0
A185: 180 | K185: =IF(ISBLANK($B185),0,VLOOKUP($B185,FullDragonTable,2,0)) -> 0
A186: 181 | K186: =IF(ISBLANK($B186),0,VLOOKUP($B186,FullDragonTable,2,0)) -> 0
A187: 182 | K187: =IF(ISBLANK($B187),0,VLOOKUP($B187,FullDragonTable,2,0)) -> 0
A188: 183 | K188: =IF(ISBLANK($B188),0,VLOOKUP($B188,FullDragonTable,2,0)) -> 0
A189: 184 | K189: =IF(ISBLANK($B189),0,VLOOKUP($B189,FullDragonTable,2,0)) -> 0
A190: 185 | K190: =IF(ISBLANK($B190),0,VLOOKUP($B190,FullDragonTable,2,0)) -> 0
A191: 186 | K191: =IF(ISBLANK($B191),0,VLOOKUP($B191,FullDragonTable,2,0)) -> 0
A192: 187 | K192: =IF(ISBLANK($B192),0,VLOOKUP($B192,FullDragonTable,2,0)) -> 0
A193: 188 | K193: =IF(ISBLANK($B193),0,VLOOKUP($B193,FullDragonTable,2,0)) -> 0
A194: 189 | K194: =IF(ISBLANK($B194),0,VLOOKUP($B194,FullDragonTable,2,0)) -> 0
A195: 190 | K195: =IF(ISBLANK($B195),0,VLOOKUP($B195,FullDragonTable,2,0)) -> 0
A196: 191 | K196: =IF(ISBLANK($B196),0,VLOOKUP($B196,FullDragonTable,2,0)) -> 0
A197: 192 | K197: =IF(ISBLANK($B197),0,VLOOKUP($B197,FullDragonTable,2,0)) -> 0
A198: 193 | K198: =IF(ISBLANK($B198),0,VLOOKUP($B198,FullDragonTable,2,0)) -> 0 | L198: =IF(ISBLANK($B198),"",IF(ISBLANK(VLOOKUP($B198,FullDragonTable,3,0)),"",VLOOKUP($B198,FullDragonTable,3,0))) ->  | M198: =IF(ISBLANK($B198),"",IF(ISBLANK(VLOOKUP($B198,FullDragonTable,4,0)),"",VLOOKUP($B198,FullDragonTable,4,0))) ->  | N198: =IF(ISBLANK($B198),"",IF(ISBLANK(VLOOKUP($B198,FullDragonTable,5,0)),"",VLOOKUP($B198,FullDragonTable,5,0))) ->  | O198: =IF(ISBLANK($B198),"",IF(ISBLANK(VLOOKUP($B198,FullDragonTable,6,0)),"",VLOOKUP($B198,FullDragonTable,6,0))) ->  | P198: =IF(ISBLANK($B198),"",VLOOKUP($B198,FullDragonTable,7,0)) ->  | Q198: =IF(ISBLANK($B198),"",VLOOKUP(P198,AttackTable,2,0)) ->  | R198: =IF(ISBLANK($B198),"",VLOOKUP(P198,AttackTable,3,0)) ->  | S198: =IF(ISBLANK($B198),"",VLOOKUP($B198,FullDragonTable,8,0)) ->  | T198: =IF(ISBLANK($B198),"",VLOOKUP(S198,AttackTable,2,0)) ->  | U198: =IF(ISBLANK($B198),"",VLOOKUP(S198,AttackTable,3,0)) ->  | V198: =IF(ISBLANK($B198),"",VLOOKUP($B198,FullDragonTable,9,0)) ->  | W198: =IF(ISBLANK($B198),"",VLOOKUP(V198,AttackTable,2,0)) ->  | X198: =IF(ISBLANK($B198),"",VLOOKUP(V198,AttackTable,3,0)) ->  | Y198: =IF(ISBLANK($B198),"",VLOOKUP($B198,FullDragonTable,10,0)) ->  | Z198: =IF(ISBLANK($B198),"",VLOOKUP(Y198,AttackTable,2,0)) ->  | AA198: =IF(ISBLANK($B198),"",VLOOKUP(Y198,AttackTable,3,0)) ->  | AB198: =IF(ISBLANK($B198),"",VLOOKUP($B198,FullDragonTable,11,0)) ->  | AC198: =IF(ISBLANK($B198),"",VLOOKUP(AB198,AttackTable,2,0)) ->  | AD198: =IF(ISBLANK($B198),"",VLOOKUP(AB198,AttackTable,3,0)) ->  | AE198: =IF(ISBLANK($B198),"",VLOOKUP($B198,FullDragonTable,12,0)) ->  | AF198: =IF(ISBLANK($B198),"",VLOOKUP(AE198,AttackTable,2,0)) ->  | AG198: =IF(ISBLANK($B198),"",VLOOKUP(AE198,AttackTable,3,0)) ->  | AH198: =IF(ISBLANK($B198),"",VLOOKUP($B198,FullDragonTable,13,0)) ->  | AI198: =IF(ISBLANK($B198),"",VLOOKUP(AH198,AttackTable,2,0)) ->  | AJ198: =IF(ISBLANK($B198),"",VLOOKUP(AH198,AttackTable,3,0)) ->  | AK198: =IF(ISBLANK($B198),"",VLOOKUP($B198,FullDragonTable,14,0)) ->  | AL198: =IF(ISBLANK($B198),"",VLOOKUP(AK198,AttackTable,2,0)) ->  | AM198: =IF(ISBLANK($B198),"",VLOOKUP(AK198,AttackTable,3,0)) -> 
A199: 194 | K199: =IF(ISBLANK($B199),0,VLOOKUP($B199,FullDragonTable,2,0)) -> 0
A200: 195 | K200: =IF(ISBLANK($B200),0,VLOOKUP($B200,FullDragonTable,2,0)) -> 0
... 510 more rows

Sheet Habitats
A1: Habitats
F3: Dragons | I3: % Used
A4: Habitat | B4: Capacity | C4: Build | D4: Island | E4: Storage | F4: Total | G4: Island | H4: Used | I4: Total | J4: Island
A5: Terra | B5: 2 | C5: 10s | D5: 1 | E5: 0 | F5: =(D5+E5)*B5 -> 2 | G5: =D5*B5 -> 2 | H5: =COUNTIF('My Dragons'!$F$6:$F$710,A5) -> 1 | I5: =IF((F5+F6)=0,0,(H5+H6)/(F5+F6)) -> 50% | J5: =IF((H5+H6)=0,0,(H5+H6)/(G5+G6)) -> 50%
A6: Big Terra | B6: 4 | C6: 30s | D6: 0 | E6: 0 | F6: =(D6+E6)*B6 -> 0 | G6: =D6*B6 -> 0 | H6: =COUNTIF('My Dragons'!$F$6:$F$710,A6) -> 0
A7: Flame | B7: 2 | C7: 10s | D7: 1 | E7: 0 | F7: =(D7+E7)*B7 -> 2 | G7: 2 | H7: =COUNTIF('My Dragons'!$F$6:$F$710,A7) -> 1 | I7: =IF((F7+F8)=0,0,(H7+H8)/(F7+F8)) -> 50% | J7: =IF((H7+H8)=0,0,(H7+H8)/(G7+G8)) -> 50%
A8: Big Flame | B8: 4 | C8: 2h | D8: 0 | E8: 0 | F8: 0 | G8: 0 | H8: =COUNTIF('My Dragons'!$F$6:$F$710,A8) -> 0
A9: Sea | B9: 1 | C9: 10s | D9: 0 | E9: 0 | F9: 0 | G9: 0 | H9: =COUNTIF('My Dragons'!$F$6:$F$710,A9) -> 0 | I9: =IF((F9+F10)=0,0,(H9+H10)/(F9+F10)) -> 0% | J9: =IF((H9+H10)=0,0,(H9+H10)/(G9+G10)) -> 0%
A10: Big Sea | B10: 3 | C10: 2h | D10: 0 | E10: 0 | F10: 0 | G10: 0 | H10: =COUNTIF('My Dragons'!$F$6:$F$710,A10) -> 0
A11: Nature | B11: 2 | C11: 1h | D11: 0 | E11: 0 | F11: 0 | G11: 0 | H11: =COUNTIF('My Dragons'!$F$6:$F$710,A11) -> 0 | I11: =IF((F11+F12)=0,0,(H11+H12)/(F11+F12)) -> 0% | J11: =IF((H11+H12)=0,0,(H11+H12)/(G11+G12)) -> 0%
A12: Big Nature | B12: 4 | C12: 2h | D12: 0 | E12: 0 | F12: 0 | G12: 0 | H12: =COUNTIF('My Dragons'!$F$6:$F$710,A12) -> 0
A13: Electric | B13: 2 | C13: 2h | D13: 0 | E13: 0 | F13: 0 | G13: 0 | H13: =COUNTIF('My Dragons'!$F$6:$F$710,A13) -> 0 | I13: =IF((F13+F14)=0,0,(H13+H14)/(F13+F14)) -> 0% | J13: =IF((H13+H14)=0,0,(H13+H14)/(G13+G14)) -> 0%
A14: Big Electric | B14: 4 | C14: 8h | D14: 0 | E14: 0 | F14: 0 | G14: 0 | H14: =COUNTIF('My Dragons'!$F$6:$F$710,A14) -> 0
A15: Ice | B15: 1 | C15: - | D15: 0 | E15: 0 | F15: 0 | G15: 0 | H15: =COUNTIF('My Dragons'!$F$6:$F$710,A15) -> 0 | I15: =IF((F15+F16)=0,0,(H15+H16)/(F15+F16)) -> 0% | J15: =IF((H15+H16)=0,0,(H15+H16)/(G15+G16)) -> 0%
A16: Big Ice | B16: 3 | C16: 12h | D16: 0 | E16: 0 | F16: 0 | G16: 0 | H16: =COUNTIF('My Dragons'!$F$6:$F$710,A16) -> 0
A17: Metal | B17: 2 | C17: - | D17: 0 | E17: 0 | F17: 0 | G17: 0 | H17: =COUNTIF('My Dragons'!$F$6:$F$710,A17) -> 0 | I17: =IF((F17+F18)=0,0,(H17+H18)/(F17+F18)) -> 0% | J17: =IF((H17+H18)=0,0,(H17+H18)/(G17+G18)) -> 0%
A18: Big Metal | B18: 4 | C18: 18h | D18: 0 | E18: 0 | F18: 0 | G18: 0 | H18: =COUNTIF('My Dragons'!$F$6:$F$710,A18) -> 0
A19: Dark | B19: 2 | C19: 2h | D19: 0 | E19: 0 | F19: 0 | G19: 0 | H19: =COUNTIF('My Dragons'!$F$6:$F$710,A19) -> 0 | I19: =IF((F19+F20)=0,0,(H19+H20)/(F19+F20)) -> 0% | J19: =IF((H19+H20)=0,0,(H19+H20)/(G19+G20)) -> 0%
A20: Big Dark | B20: 4 | C20: 30h | D20: 0 | E20: 0 | F20: 0 | G20: 0 | H20: =COUNTIF('My Dragons'!$F$6:$F$710,A20) -> 0
A21: Light | B21: 2 | C21: 4h | D21: 0 | E21: 0 | F21: 0 | G21: 0 | H21: =COUNTIF('My Dragons'!$F$6:$F$710,A21) -> 0 | I21: =IF((F21+F22)=0,0,(H21+H22)/(F21+F22)) -> 0% | J21: =IF((H21+H22)=0,0,(H21+H22)/(G21+G22)) -> 0%
A22: Big Light | B22: 3 | C22: 24h | D22: 0 | E22: 0 | F22: 0 | G22: 0 | H22: =COUNTIF('My Dragons'!$F$6:$F$710,A22) -> 0
A23: War | B23: 2 | C23: 4h | D23: 0 | E23: 0 | F23: 0 | G23: 0 | H23: =COUNTIF('My Dragons'!$F$6:$F$710,A23) -> 0 | I23: =IF((F23+F24)=0,0,(H23+H24)/(F23+F24)) -> 0% | J23: =IF((H23+H24)=0,0,(H23+H24)/(G23+G24)) -> 0%
A24: Big War | B24: 3 | C24: 36h | D24: 0 | E24: 0 | F24: 0 | G24: 0 | H24: =COUNTIF('My Dragons'!$F$6:$F$710,A24) -> 0
A25: Pure | B25: 2 | C25: 6h | D25: 0 | E25: 0 | F25: 0 | G25: 0 | H25: =COUNTIF('My Dragons'!$F$6:$F$710,A25) -> 0 | I25: =IF(F25=0,0,H25/F25) -> 0% | J25: =IF(G25=0,0,H25/G25) -> 0%
A26: Legend | B26: 1 | C26: 8h | D26: 0 | E26: 0 | F26: 0 | G26: 0 | H26: =COUNTIF('My Dragons'!$F$6:$F$710,A26) -> 0 | I26: 0% | J26: =IF(G26=0,0,H26/G26) -> 0%
A27: Beauty | B27: 2 | C27: 5h | D27: 0 | E27: 0 | F27: 0 | G27: 0 | H27: =COUNTIF('My Dragons'!$F$6:$F$710,A27) -> 0 | I27: 0% | J27: =IF(G27=0,0,H27/G27) -> 0%
A28: Magic | B28: 2 | C28: 5h | D28: 0 | E28: 0 | F28: 0 | G28: 0 | H28: =COUNTIF('My Dragons'!$F$6:$F$710,A28) -> 0 | I28: 0% | J28: =IF(G28=0,0,H28/G28) -> 0%
A29: Chaos | B29: 2 | C29: 6h | D29: 0 | E29: 0 | F29: 0 | G29: 0 | H29: =COUNTIF('My Dragons'!$F$6:$F$710,A29) -> 0 | I29: 0% | J29: =IF(G29=0,0,H29/G29) -> 0%
A30: Happy | B30: 2 | C30: 6h | D30: 0 | E30: 0 | F30: 0 | G30: 0 | H30: =COUNTIF('My Dragons'!$F$6:$F$710,A30) -> 0 | I30: 0% | J30: 0%
A31: Dream | B31: 2 | C31: 7h | D31: 0 | E31: 0 | F31: 0 | G31: 0 | H31: =COUNTIF('My Dragons'!$F$6:$F$710,A31) -> 0 | I31: 0% | J31: 0%
A32: Soul | B32: 2 | C32: 8h | D32: 0 | E32: 0 | F32: =(D32+E32)*B32 -> 0 | G32: 0 | H32: =COUNTIF('My Dragons'!$F$6:$F$710,A32) -> 0 | I32: 0% | J32: 0%
A33: Dragonarium | B33: 1 | C33: 10h? | D33: 0 | E33: 0 | F33: 0 | G33: =D33*B33 -> 0 | H33: =COUNTIF('My Dragons'!$F$6:$F$710,A33) -> 0 | I33: 0% | J33: 0%
A34: Kindergarten | B34: 5 | C34: ? | D34: 0 | E34: 0 | F34: 0 | G34: =D34*B34 -> 0 | I34: 0% | J34: =IF(G34=0,0,H34/G34) -> 0%
A36: Habitat Totals | D36: =SUM(D5:D32) -> 2 | E36: =SUM(E5:E32) -> 0 | F36: =SUM(F5:F32) -> 4 | G36: =SUM(G5:G32) -> 4 | H36: =SUM(H5:H32) -> 2 | I36: =IF(F36=0,0,H36/F36) -> 50% | J36: =H36/G36 -> 50%
A37: Storage Totals | F37: =F33+F34 -> 0 | G37: =G33+G34 -> 0 | H37: =H33+H34 -> 0 | I37: =IF(F37=0,0,H37/F37) -> 0% | J37: =IF(G37=0,0,H37/G37) -> 0%
A38: Grand Total | F38: =F36+F37 -> 4 | G38: =G36+G37 -> 4 | H38: 2 | I38: =IF(F38=0,0,H38/F38) -> 50% | J38: =H38/G38 -> 50%

Sheet Tables
L2: Habitat | P2: Attack
A3: Attack | B3: Element | C3: Damage | E3: Elements | G3: Attack Element | I3: Number | J3: Dragon | K3: Category | L3: 1 | M3: 2 | N3: 3 | O3: 4 | P3: 1 | Q3: 2 | R3: 3 | S3: 4 | T3: T1 | U3: T2 | V3: T3 | W3: T4 | X3: Breedable | Y3: Breed/Hatch
A4: Acid Rain | B4: Sea | C4: 1200 | E4: Beauty | G4: Beauty | I4: 1 | J4: Abyss | K4: 5 | L4: Light | M4: Dark | N4: Ice | O4: Flame | P4: Light Sword | Q4: Ghost Cloud | R4: Frost Nova | S4: Nuclear Hit | T4: Enlightning Wisdom | U4: The Grim Reaper | V4: Icy Wind | W4: Magma Storm | X4: 1 | Y4: 62/72
A5: Appeal | B5: Happy | C5: 1350 | E5: Chaos | G5: Chaos | I5: 2 | J5: Ace | K5: 4 | L5: Sea | M5: Nature | N5: Metal | P5: Judo Kick | Q5: Flooding | R5: Stitching Roots | S5: Nail Rain | T5: Hammer Fist | U5: Acid Rain | V5: Rottening Spell | W5: Cannon Balls | X5: 0 | Y5: 23
A6: Asteroid | B6: Terra | C6: 1200 | E6: Dark | G6: Dark | I6: 3 | J6: Acoustic | K6: 4 | L6: Dark | M6: Electric | P6: Punch | Q6: Life Drain | R6: Electric Shock | S6: Leech | T6: The Grim Reaper | U6: Electro Ball | V6: Black Hole | W6: Tesla Ray | X6: 1 | Y6: 58/68
A7: Astro Hit | B7: War | C7: 1650 | E7: Dream | G7: Dream | I7: 4 | J7: Adamantium | K7: 4 | L7: Metal | M7: Terra | P7: Stunning Hit | Q7: Nail Rain | R7: Magneto | S7: Tumble Weed | T7: Hammer Fist | U7: Cannon Balls | V7: Ninja Stars | W7: Sand Storm | X7: 0 | Y7: 16
A8: Aurora Borealis | B8: Legend | C8: 2100 | E8: Electric | G8: Electric | I8: 5 | J8: Adventure | K8: 4 | L8: Terra | M8: Flame | N8: Light | P8: Stunning Hit | Q8: Tumble Weed | R8: Flaming Arrows | S8: Light Prism | T8: Karate Brick Break | U8: Sand Storm | V8: Magma Storm | W8: Light Star | X8: 0 | Y8: 23
A9: Bee Hive | B9: Nature | C9: 1350 | E9: Flame | G9: Flame | I9: 6 | J9: Albino | K9: 4 | L9: Sea | M9: Nature | N9: Light | P9: Hard Charge | Q9: Flooding | R9: Poison Ivy | S9: Light Prism | T9: Hammer Fist | U9: Acid Rain | V9: Rottening Spell | W9: Enlightning Wisdom | X9: 0 | Y9: 23
A10: Black Hole | B10: Dark | C10: 1350 | E10: Happy | G10: Happy | I10: 7 | J10: Alien | K10: 4 | L10: Sea | M10: Metal | P10: Stunning Hit | Q10: Storm | R10: Judo Kick | S10: Rust | T10: Acid Rain | U10: Hammer Fist | V10: Ninja Stars | W10: Karate Brick Break | X10: 0 | Y10: 15
A11: Bright Aura | B11: Beauty | C11: 1175 | E11: Ice | G11: Ice | I11: 8 | J11: Allure | K11: 5 | L11: Light | M11: Nature | P11: Head Butt | Q11: Light Sword | R11: Light Prism | S11: Poison Ivy | T11: Deus Sword | U11: Enlightning Wisdom | V11: Out of Time | W11: Bee Hive | X11: 0 | Y11: 23
A12: Brilliant Firework | B12: Happy | C12: 1050 | E12: Legend | G12: Legend | I12: 9 | J12: Alpine | K12: 2 | L12: Terra | M12: Ice | P12: Flying Kick | Q12: Ice Spikes | R12: Stunning Hit | S12: Tumble Weed | T12: Head Butt | U12: Asteroid | V12: Icy Wind | W12: Sand Storm | X12: 1 | Y12: 13/19
A13: Cannon Balls | B13: Metal | C13: 1200 | E13: Light | G13: Light | I13: 10 | J13: Amazone | K13: 4 | L13: Metal | M13: Dark | N13: Nature | P13: Hard Charge | Q13: Cannon Balls | R13: Ghost Cloud | S13: Stitching Roots | T13: Stunning Hit | U13: Ninja Stars | V13: The Grim Reaper | W13: Leaf Blast | X13: 0 | Y13: 23
A14: Celestial Hand | B14: Soul | C14: 1050 | E14: Magic | G14: Magic | I14: 11 | J14: Amber | K14: 4 | L14: Beauty | M14: Soul | P14: Judo Kick | Q14: Floral Coup | R14: Soul Breaker | S14: Bright Aura | T14: Karate Brick Break | U14: Deus Sword | V14: Grace Touch | W14: Supernatural | X14: 1 | Y14: 16/24
A15: Confusing Wake | B15: Dream | C15: 1050 | E15: Metal | G15: Metal | I15: 12 | J15: Amerindian | K15: 6 | L15: Nature | M15: Terra | N15: Pure | P15: Punch | Q15: Stitching Roots | R15: Earthquake | S15: Pure Energy | T15: Hammer Fist | U15: Poison Ivy | V15: Meteor Shower | W15: Pure Light | X15: 0 | Y15: 23
A16: Cryogenic Freeze | B16: Ice | C16: 1350 | E16: Nature | G16: Nature | I16: 13 | J16: Amethyst | K16: 4 | L16: Nature | M16: Metal | P16: Flying Kick | Q16: Stitching Roots | R16: Head Butt | S16: Rust | T16: Hammer Fist | U16: Bee Hive | V16: Karate Brick Break | W16: Cannon Balls | X16: 0 | Y16: 17
A17: Destiny Chains | B17: Chaos | C17: 1175 | E17: Pure | G17: Physical | I17: 14 | J17: Ancient | K17: 4 | L17: Terra | M17: Ice | N17: Nature | P17: Punch | Q17: Lightning | R17: Snow Storm | S17: Leaf Blast | T17: Deus Sword | U17: Electro Ball | V17: Cryogenic Freeze | W17: Rottening Spell | X17: 0 | Y17: 17
A18: Deus Sword | B18: Physical | C18: 1125 | E18: Sea | G18: Pure | I18: 15 | J18: Angry | K18: 4 | L18: Terra | M18: Flame | N18: Nature | P18: Stunning Hit | Q18: Earthquake | R18: Leaf Blast | S18: Nuclear Hit | T18: Hammer Fist | U18: Asteroid | V18: Flamethrower | W18: Rottening Spell | X18: 1 | Y18: 16/24
A19: Disorder | B19: Chaos | C19: 1350 | E19: Soul | G19: Sea | I19: 16 | J19: Animation | K19: 4 | L19: Sea | M19: Electric | P19: Punch | Q19: Tsunami | R19: Judo Kick | S19: Lightning | T19: Acid Rain | U19: Electro Ball | V19: Whirlpool | W19: Tesla Ray | X19: 0 | Y19: 17
A20: Earthquake | B20: Terra | C20: 550 | E20: Terra | G20: Soul | I20: 17 | J20: Anniversary | K20: 4 | L20: Sea | M20: Nature | N20: Flame | P20: Punch | Q20: Flooding | R20: Leaf Blast | S20: Lava Balls | T20: Hammer Fist | U20: Whirlpool | V20: Rottening Spell | W20: Flamethrower | X20: 0 | Y20: 23
A21: Electric Shock | B21: Electric | C21: 1050 | E21: War | G21: Terra | I21: 18 | J21: Anubis | K21: 4 | L21: Dark | M21: Terra | P21: Flying Kick | Q21: Life Drain | R21: Earthquake | S21: Leech | T21: Stunning Hit | U21: Ghost Cloud | V21: Asteroid | W21: The Grim Reaper | X21: 0 | Y21: 23
A22: Electro Ball | B22: Electric | C22: 1200 | G22: War | I22: 19 | J22: Apache | K22: 3 | L22: Sea | M22: Terra | P22: Hard Charge | Q22: Flooding | R22: Storm | S22: Tumble Weed | T22: Hammer Fist | U22: Acid Rain | V22: Whirlpool | W22: Sand Storm | X22: 0 | Y22: 17
A23: Enlightning Wisdom | B23: Light | C23: 1200 | I23: 20 | J23: Apocalypse | K23: 5 | L23: Flame | M23: Ice | N23: Light | O23: Dark | P23: Nuclear Hit | Q23: Snow Storm | R23: Light Prism | S23: Ghost Cloud | T23: Flamethrower | U23: Icy Wind | V23: Out of Time | W23: Black Hole | X23: 1 | Y23: 62/72
A24: Festive Lights | B24: Happy | C24: 1175 | I24: 21 | J24: Aqualung | K24: 5 | L24: Terra | M24: Metal | N24: Sea | P24: Stunning Hit | Q24: Meteor Shower | R24: Magneto | S24: Storm | T24: Hammer Fist | U24: Asteroid | V24: Ninja Stars | W24: Whirlpool | X24: 0 | Y24: 16
A25: Flamethrower | B25: Flame | C25: 1200 | I25: 22 | J25: Aquamarine | K25: 4 | L25: Sea | M25: Nature | P25: Punch | Q25: Tsunami | R25: Flooding | S25: Leaf Blast | T25: Karate Brick Break | U25: Acid Rain | V25: Whirlpool | W25: Rottening Spell | X25: 0 | Y25: 23
A26: Flaming Arrows | B26: Flame | C26: 650 | I26: 23 | J26: Archangel | K26: 4 | L26: Light | P26: Punch | Q26: Light Prism | R26: Head Butt | S26: Light Sword | T26: Karate Brick Break | U26: Enlightning Wisdom | V26: Deus Sword | W26: Out of Time | X26: 1 | Y26: 5/7
A27: Flooding | B27: Sea | C27: 650 | I27: 24 | J27: Armadillo | K27: 4 | L27: Terra | M27: Metal | P27: Stunning Hit | Q27: Meteor Shower | R27: Rust | S27: Tumble Weed | T27: Judo Kick | U27: Asteroid | V27: Ninja Stars | W27: Cannon Balls | X27: 1 | Y27: 9/15
A28: Floral Coup | B28: Beauty | C28: 1050 | E28: Ancient Elements | I28: 25 | J28: Asier | K28: 5 | L28: Legend | P28: Hard Charge | Q28: Legendary Wind | R28: Head Butt | S28: Paralyzing Spell | T28: Hammer Fist | U28: Rainbow | V28: Deus Sword | W28: Legend Spell | X28: 1 | Y28: 50/58
A29: Flying Kick | B29: Physical | C29: 413 | E29: Beauty | I29: 26 | J29: Astronaut | K29: 4 | L29: Electric | M29: Metal | N29: Light | P29: Hard Charge | Q29: Lightning | R29: Magneto | S29: Light Star | T29: Deus Sword | U29: Electro Ball | V29: Cannon Balls | W29: Out of Time | X29: 0 | Y29: 23
A30: Frost Nova | B30: Ice | C30: 550 | E30: Chaos | I30: 27 | J30: Atlantean | K30: 5 | L30: Legend | P30: Judo Kick | Q30: Legendary Wind | R30: Paralyzing Spell | S30: Rainbow | T30: Karate Brick Break | U30: Deus Sword | V30: Aurora Borealis | W30: Legend Spell | X30: 0 | Y30: 16
A31: Ghost Cloud | B31: Dark | C31: 1050 | E31: Dream | I31: 28 | J31: Atlas | K31: 4 | L31: Sea | M31: Terra | N31: Nature | P31: Judo Kick | Q31: Storm | R31: Meteor Shower | S31: Leaf Blast | T31: Karate Brick Break | U31: Acid Rain | V31: Asteroid | W31: Rottening Spell | X31: 0 | Y31: 17
A32: Ghostly Blades | B32: Soul | C32: 1200 | E32: Happy | I32: 29 | J32: Aurora | K32: 4 | L32: Electric | M32: Flame | P32: Hard Charge | Q32: Laser Beam | R32: Stunning Hit | S32: Nuclear Hit | T32: Head Butt | U32: Electric Shock | V32: Judo Kick | W32: Flamethrower | X32: 1 | Y32: 16/24
A33: Giant Claw | B33: War | C33: 1050 | E33: Magic | I33: 30 | J33: Aztec | K33: 4 | L33: Terra | M33: Flame | P33: Hard Charge | Q33: Flaming Arrows | R33: Stunning Hit | S33: Tumble Weed | T33: Head Butt | U33: Nuclear Hit | V33: Karate Brick Break | W33: Asteroid | X33: 1 | Y33: 16/24
A34: Giant Crack | B34: War | C34: 638 | E34: Soul | I34: 31 | J34: Aztec Emperor | K34: 4 | L34: Nature | M34: Electric | N34: Light | P34: Stunning Hit | Q34: Stitching Roots | R34: Electric Shock | S34: Light Star | T34: Deus Sword | U34: Bee Hive | V34: Electro Ball | W34: Pure Light | X34: 0 | Y34: 17
A35: Giant Mouth | B35: War | C35: 975 | I35: 32 | J35: Aztec Priest | K35: 4 | L35: Nature | M35: Dark | P35: Flying Kick | Q35: Leaf Blast | R35: Stunning Hit | S35: Leech | T35: Hammer Fist | U35: Bee Hive | V35: Karate Brick Break | W35: Black Hole | X35: 0 | Y35: 17
A36: Grace Touch | B36: Beauty | C36: 1350 | I36: 33 | J36: Aztec Warrior | K36: 4 | L36: Nature | M36: Flame | P36: Punch | Q36: Poison Ivy | R36: Hard Charge | S36: Flaming Arrows | T36: Hammer Fist | U36: Rottening Spell | V36: Karate Brick Break | W36: Flamethrower | X36: 0 | Y36: 17
A37: Hammer Fist | B37: Physical | C37: 900 | I37: 34 | J37: Balloon | K37: 3 | L37: Happy | M37: Dream | P37: Head Butt | Q37: Brilliant Firework | R37: Confusing Wake | S37: Festive Lights | T37: Karate Brick Break | U37: Deus Sword | V37: Appeal | W37: Trance | X37: 1 | Y37: 16/24
A38: Hard Charge | B38: Physical | C38: 488 | I38: 35 | J38: Barley | K38: 4 | L38: Sea | M38: Terra | N38: Light | P38: Stunning Hit | Q38: Acid Rain | R38: Tumble Weed | S38: Light Sword | T38: Hammer Fist | U38: Whirlpool | V38: Sand Storm | W38: Enlightning Wisdom | X38: 0 | Y38: 23
A39: Head Butt | B39: Physical | C39: 788 | I39: 36 | J39: Basilisk | K39: 5 | L39: Flame | M39: Pure | P39: Stunning Hit | Q39: Lava Balls | R39: Pure Energy | S39: Nuclear Hit | T39: Flamethrower | U39: Hypnosis | V39: Magma Storm | W39: Pure Light | X39: 1 | Y39: 58/68
A40: Hypnosis | B40: Pure | C40: 1500 | I40: 37 | J40: Bastark | K40: 4 | L40: Ice | M40: Metal | N40: Light | P40: Punch | Q40: Frost Nova | R40: Rust | S40: Enlightning Wisdom | T40: Judo Kick | U40: Snow Storm | V40: Ninja Stars | W40: Out of Time | X40: 0 | Y40: 17
A41: Ice Spikes | B41: Ice | C41: 650 | I41: 38 | J41: Bat | K41: 4 | L41: Dark | M41: Terra | P41: Stunning Hit | Q41: Meteor Shower | R41: Head Butt | S41: Ghost Cloud | T41: Judo Kick | U41: Asteroid | V41: Hammer Fist | W41: The Grim Reaper | X41: 1 | Y41: 16/24
A42: Icy Wind | B42: Ice | C42: 1200 | I42: 39 | J42: Battery | K42: 2 | L42: Electric | M42: Metal | P42: Flying Kick | Q42: Lightning | R42: Magneto | S42: Laser Beam | T42: Head Butt | U42: Electric Shock | V42: Rust | W42: Electro Ball | X42: 1 | Y42: 13/19
A43: Infernal Crack | B43: Chaos | C43: 1050 | I43: 40 | J43: Bavarian | K43: 4 | L43: Terra | M43: Ice | P43: Hard Charge | Q43: Earthquake | R43: Stunning Hit | S43: Snow Storm | T43: Hammer Fist | U43: Asteroid | V43: Karate Brick Break | W43: Icy Wind | X43: 0 | Y43: 17
A44: Judo Kick | B44: Physical | C44: 863 | I44: 41 | J44: Beholder | K44: 5 | L44: War | M44: Pure | N44: Ice | O44: Dark | P44: Giant Claw | Q44: Hypnosis | R44: Icy Wind | S44: The Grim Reaper | T44: War Fist | U44: Pure Light | V44: Cryogenic Freeze | W44: Black Hole | X44: 0 | Y44: 40
A45: Karate Brick Break | B45: Physical | C45: 1013 | I45: 42 | J45: Big Claws | K45: 4 | L45: Metal | M45: Flame | N45: Electric | P45: Head Butt | Q45: Magneto | R45: Nuclear Hit | S45: Electric Shock | T45: Karate Brick Break | U45: Cannon Balls | V45: Flamethrower | W45: Tesla Ray | X45: 0 | Y45: 17
A46: Laser Beam | B46: Electric | C46: 650 | I46: 43 | J46: Big Hat | K46: 4 | L46: Electric | M46: Ice | P46: Stunning Hit | Q46: Electric Shock | R46: Head Butt | S46: Ice Spikes | T46: Hammer Fist | U46: Electro Ball | V46: Icy Wind | W46: Tesla Ray | X46: 0 | Y46: 17
A47: Lava Balls | B47: Flame | C47: 550 | I47: 44 | J47: BigFace | K47: 4 | L47: Electric | M47: Ice | N47: Metal | P47: Hammer Fist | Q47: Laser Beam | R47: Frost Nova | S47: Nail Rain | T47: Deus Sword | U47: Electric Shock | V47: Icy Wind | W47: Cannon Balls | X47: 0 | Y47: 23
A48: Leaf Blast | B48: Nature | C48: 1050 | I48: 45 | J48: Black Knight | K48: 4 | L48: Dark | M48: Flame | P48: Hard Charge | Q48: Life Drain | R48: Stunning Hit | S48: Lava Balls | T48: The Grim Reaper | U48: Flamethrower | V48: Black Hole | W48: Magma Storm | X48: 0 | Y48: 17
A49: Leech | B49: Dark | C49: 650 | I49: 46 | J49: Black Swan | K49: 4 | L49: Dark | M49: Sea | N49: Pure | P49: Head Butt | Q49: Leech | R49: Flooding | S49: Hypnosis | T49: Karate Brick Break | U49: The Grim Reaper | V49: Acid Rain | W49: Pure Energy | X49: 0 | Y49: 24
A50: Legend Spell | B50: Legend | C50: 2300 | I50: 47 | J50: Blind | K50: 3 | L50: Terra | M50: Dark | P50: Stunning Hit | Q50: Earthquake | R50: Head Butt | S50: Life Drain | T50: Hammer Fist | U50: Asteroid | V50: Karate Brick Break | W50: Black Hole | X50: 0 | Y50: 17
A51: Legendary Wind | B51: Legend | C51: 550 | I51: 48 | J51: Blizzard | K51: 3 | L51: Sea | M51: Flame | P51: Hard Charge | Q51: Flaming Arrows | R51: Flooding | S51: Nuclear Hit | T51: Head Butt | U51: Magma Storm | V51: Acid Rain | W51: Flamethrower | X51: 1 | Y51: 2/2
A52: Life Drain | B52: Dark | C52: 550 | I52: 49 | J52: Block | K52: 4 | L52: Electric | M52: Dark | P52: Stunning Hit | Q52: Laser Beam | R52: Head Butt | S52: Ghost Cloud | T52: Hammer Fist | U52: Electric Shock | V52: Karate Brick Break | W52: The Grim Reaper | X52: 1 | Y52: 9/15
A53: Light Prism | B53: Light | C53: 750 | I53: 50 | J53: Blue | K53: 4 | L53: Sea | M53: Flame | N53: Metal | P53: Storm | Q53: Head Butt | R53: Rust | S53: Nuclear Hit | T53: Acid Rain | U53: Hammer Fist | V53: Cannon Balls | W53: Magma Storm | X53: 1 | Y53: 11/17
A54: Light Star | B54: Light | C54: 1050 | I54: 51 | J54: Blue Alien | K54: 5 | L54: Pure | M54: Light | N54: Sea | P54: Punch | Q54: Hypnosis | R54: Light Prism | S54: Tsunami | T54: Flying Kick | U54: Pure Light | V54: Out of Time | W54: Acid Rain | X54: 0 | Y54: 40
A55: Light Sword | B55: Light | C55: 650 | I55: 52 | J55: Blue Fire | K55: 4 | L55: Flame | M55: Ice | N55: Pure | P55: Hard Charge | Q55: Flaming Arrows | R55: Stunning Hit | S55: Ice Spikes | T55: Hammer Fist | U55: Magma Storm | V55: Cryogenic Freeze | W55: Pure Energy | X55: 0 | Y55: 17
A56: Lightning | B56: Electric | C56: 550 | I56: 53 | J56: Bohemian | K56: 5 | L56: Legend | P56: Punch | Q56: Legendary Wind | R56: Stunning Hit | S56: Rainbow | T56: Hammer Fist | U56: Aurora Borealis | V56: Karate Brick Break | W56: Legend Spell | X56: 0 | Y56: 23
A57: Magic Blow | B57: Magic | C57: 1050 | I57: 54 | J57: Bone | K57: 4 | L57: Dark | M57: Terra | P57: Punch | Q57: Leech | R57: Hard Charge | S57: Tumble Weed | T57: Hammer Fist | U57: The Grim Reaper | V57: Deus Sword | W57: Sand Storm | X57: 0 | Y57: 17
A58: Magma Storm | B58: Flame | C58: 1350 | I58: 55 | J58: Bonfire | K58: 4 | L58: Flame | M58: Terra | N58: Nature | P58: Flying Kick | Q58: Flaming Arrows | R58: Meteor Shower | S58: Leaf Blast | T58: Head Butt | U58: Nuclear Hit | V58: Asteroid | W58: Bee Hive | X58: 0 | Y58: 23
A59: Magneto | B59: Metal | C59: 650 | I59: 56 | J59: Bookday | K59: 4 | L59: Nature | M59: Flame | N59: Pure | P59: Stunning Hit | Q59: Stitching Roots | R59: Flaming Arrows | S59: Hypnosis | T59: Deus Sword | U59: Bee Hive | V59: Magma Storm | W59: Pure Light | X59: 0 | Y59: 23
A60: Mana Lightnings | B60: Magic | C60: 1175 | I60: 57 | J60: Boreal | K60: 4 | L60: Pure | M60: Dark | N60: Light | P60: Judo Kick | Q60: Hypnosis | R60: Life Drain | S60: Light Prism | T60: Hammer Fist | U60: Pure Energy | V60: Ghost Cloud | W60: Enlightning Wisdom | X60: 0 | Y60: 40
A61: Meteor Shower | B61: Terra | C61: 650 | I61: 58 | J61: Box | K61: 5 | L61: Dark | M61: Terra | P61: Stunning Hit | Q61: Leech | R61: Poison Ivy | S61: Ghost Cloud | T61: Karate Brick Break | U61: The Grim Reaper | V61: Rottening Spell | W61: Black Hole | X61: 0 | Y61: 23
A62: Nail Rain | B62: Metal | C62: 550 | I62: 59 | J62: Brave Sword | K62: 4 | L62: Terra | M62: Sea | N62: War | P62: Head Butt | Q62: Meteor Shower | R62: Storm | S62: Giant Claw | T62: Deus Sword | U62: Asteroid | V62: Whirlpool | W62: War Fist | X62: 0 | Y62: 23
A63: Ninja Stars | B63: Metal | C63: 1350 | I63: 60 | J63: Bride | K63: 3 | L63: Beauty | M63: Happy | P63: Stunning Hit | Q63: Brilliant Firework | R63: Floral Coup | S63: Festive Lights | T63: Karate Brick Break | U63: Deus Sword | V63: Appeal | W63: Grace Touch | X63: 1 | Y63: 16/24
A64: Nuclear Hit | B64: Flame | C64: 1050 | I64: 61 | J64: Brontosaurus | K64: 4 | L64: Nature | M64: Terra | P64: Hard Charge | Q64: Meteor Shower | R64: Head Butt | S64: Leaf Blast | T64: Head Butt | U64: Tumble Weed | V64: Hammer Fist | W64: Bee Hive | X64: 0 | Y64: 15
A65: Out of Time | B65: Light | C65: 1350 | I65: 62 | J65: Bunny | K65: 4 | L65: Nature | M65: Terra | N65: Pure | P65: Stunning Hit | Q65: Poison Ivy | R65: Tumble Weed | S65: Hypnosis | T65: Hammer Fist | U65: Rottening Spell | V65: Asteroid | W65: Pure Light | X65: 0 | Y65: 23
A66: Paralyzing Spell | B66: Legend | C66: 650 | I66: 63 | J66: Burning | K66: 4 | L66: Flame | M66: Dark | P66: Hard Charge | Q66: Flaming Arrows | R66: Head Butt | S66: Life Drain | T66: Hammer Fist | U66: Magma Storm | V66: Deus Sword | W66: The Grim Reaper | X66: 1 | Y66: 17
A67: Poison Ivy | B67: Nature | C67: 650 | I67: 64 | J67: Bushido | K67: 7 | L67: Metal | M67: Dark | N67: Pure | O67: War | P67: Magneto | Q67: The Grim Reaper | R67: Giant Mouth | S67: Pure Energy | T67: Rust | U67: Black Hole | V67: Astro Hit | W67: Pure Light | X67: 0 | Y67: 23
A68: Poisonous Dream | B68: Dream | C68: 1175 | I68: 65 | J68: Butterfly | K68: 3 | L68: Nature | M68: Flame | P68: Hard Charge | Q68: Poison Ivy | R68: Head Butt | S68: Nuclear Hit | T68: Judo Kick | U68: Leaf Blast | V68: Hammer Fist | W68: Flamethrower | X68: 1 | Y68: 9/15
A69: Punch | B69: Physical | C69: 338 | I69: 66 | J69: Cactus | K69: 3 | L69: Terra | M69: Nature | P69: Hard Charge | Q69: Meteor Shower | R69: Head Butt | S69: Leaf Blast | T69: Head Butt | U69: Tumble Weed | V69: Hammer Fist | W69: Bee Hive | X69: 1 | Y69: 7/9
A70: Pure Energy | B70: Pure | C70: 1500 | I70: 67 | J70: Car | K70: 4 | L70: Metal | M70: Sea | N70: War | P70: Stunning Hit | Q70: Nail Rain | R70: Flooding | S70: Giant Claw | T70: Karate Brick Break | U70: Cannon Balls | V70: Acid Rain | W70: War Fist | X70: 0 | Y70: 23
A71: Pure Light | B71: Pure | C71: 1500 | I71: 68 | J71: Carnival | K71: 4 | L71: Metal | M71: Flame | P71: Hard Charge | Q71: Magneto | R71: Stunning Hit | S71: Nuclear Hit | T71: Judo Kick | U71: Rust | V71: Hammer Fist | W71: Flamethrower | X71: 1 | Y71: 16/24
A72: Rainbow | B72: Legend | C72: 1050 | I72: 69 | J72: Carnivore Plant | K72: 2 | L72: Nature | M72: Dark | P72: Flying Kick | Q72: Stitching Roots | R72: Poison Ivy | S72: Leech | T72: Stunning Hit | U72: Leaf Blast | V72: Rottening Spell | W72: The Grim Reaper | X72: 1 | Y72: 13/19
A73: Rottening Spell | B73: Nature | C73: 1200 | I73: 70 | J73: Cat | K73: 4 | L73: Flame | M73: Dark | P73: Flying Kick | Q73: Flaming Arrows | R73: Judo Kick | S73: Life Drain | T73: Flamethrower | U73: The Grim Reaper | V73: Magma Storm | W73: Black Hole | X73: 0 | Y73: 17
A74: Rust | B74: Metal | C74: 1050 | I74: 71 | J74: Celtic | K74: 3 | L74: Light | M74: Nature | N74: Terra | P74: Hard Charge | Q74: Light Sword | R74: Stitching Roots | S74: Tumble Weed | T74: Hammer Fist | U74: Out of Time | V74: Bee Hive | W74: Asteroid | X74: 0 | Y74: 16
A75: Sand Storm | B75: Terra | C75: 1350 | I75: 72 | J75: Centipede | K75: 4 | L75: Nature | M75: Terra | P75: Hard Charge | Q75: Meteor Shower | R75: Head Butt | S75: Leaf Blast | T75: Head Butt | U75: Tumble Weed | V75: Hammer Fist | W75: Bee Hive | X75: 1 | Y75: 16/24
A76: Snow Storm | B76: Ice | C76: 1050 | I76: 73 | J76: Cerberus | K76: 4 | L76: Dark | M76: Flame | N76: Terra | P76: Punch | Q76: Leech | R76: Lava Balls | S76: Meteor Shower | T76: Hammer Fist | U76: The Grim Reaper | V76: Magma Storm | W76: Asteroid | X76: 0 | Y76: 17
A77: Soul Breaker | B77: Soul | C77: 1175 | I77: 74 | J77: Chainmail | K77: 4 | L77: Metal | M77: Flame | P77: Stunning Hit | Q77: Flaming Arrows | R77: Karate Brick Break | S77: Nail Rain | T77: Flamethrower | U77: Magma Storm | V77: Cannon Balls | W77: Ninja Stars | X77: 0 | Y77: 17
A78: Stitching Roots | B78: Nature | C78: 550 | I78: 75 | J78: Chakra | K78: 4 | L78: Magic | M78: Soul | P78: Stunning Hit | Q78: Magic Blow | R78: Soul Breaker | S78: Mana Lightnings | T78: Karate Brick Break | U78: Deus Sword | V78: Vigor Feel | W78: Supernatural | X78: 1 | Y78: 16/24
A79: Storm | B79: Sea | C79: 1050 | I79: 76 | J79: Chameleon | K79: 3 | L79: Terra | M79: Electric | P79: Hard Charge | Q79: Meteor Shower | R79: Head Butt | S79: Electric Shock | T79: Head Butt | U79: Tumble Weed | V79: Karate Brick Break | W79: Electro Ball | X79: 1 | Y79: 9/15
A80: Stunning Hit | B80: Physical | C80: 638 | I80: 77 | J80: Cheshire Cat | K80: 4 | L80: Electric | M80: Metal | N80: Dark | P80: Flying Kick | Q80: Lightning | R80: Nail Rain | S80: Ghost Cloud | T80: Hammer Fist | U80: Electro Ball | V80: Cannon Balls | W80: The Grim Reaper | X80: 0 | Y80: 23
A81: Supernatural | B81: Soul | C81: 1350 | I81: 78 | J81: Chicken | K81: 4 | L81: Electric | M81: Nature | N81: Light | P81: Judo Kick | Q81: Electric Shock | R81: Stitching Roots | S81: Light Sword | T81: Deus Sword | U81: Tesla Ray | V81: Leaf Blast | W81: Light Prism | X81: 0 | Y81: 23
A82: Tesla Ray | B82: Electric | C82: 1350 | I82: 79 | J82: Chimera | K82: 4 | L82: Flame | M82: Light | P82: Flying Kick | Q82: Nuclear Hit | R82: Head Butt | S82: Light Prism | T82: Flamethrower | U82: Deus Sword | V82: Magma Storm | W82: Out of Time | X82: 0 | Y82: 17
A83: The Grim Reaper | B83: Dark | C83: 1200 | I83: 80 | J83: Chinese | K83: 4 | L83: Flame | M83: Terra | P83: Stunning Hit | Q83: Meteor Shower | R83: Head Butt | S83: Nuclear Hit | T83: Judo Kick | U83: Tumble Weed | V83: Karate Brick Break | W83: Flamethrower | X83: 0 | Y83: 15
A84: Trance | B84: Dream | C84: 1350 | I84: 81 | J84: Chobby | K84: 4 | L84: Ice | M84: Metal | P84: Head Butt | Q84: Frost Nova | R84: Stunning Hit | S84: Magneto | T84: Icy Wind | U84: Cannon Balls | V84: Cryogenic Freeze | W84: Ninja Stars | X84: 0 | Y84: 17
A85: Tsunami | B85: Sea | C85: 550 | I85: 82 | J85: Chocolate | K85: 4 | L85: Dark | M85: Nature | N85: War | P85: Hard Charge | Q85: Leech | R85: Leaf Blast | S85: Giant Claw | T85: Deus Sword | U85: Black Hole | V85: Bee Hive | W85: War Fist | X85: 0 | Y85: 23
A86: Tumble Weed | B86: Nature | C86: 1050 | I86: 83 | J86: Christreen | K86: 5 | L86: Nature | M86: Terra | N86: Light | P86: Hard Charge | Q86: Stitching Roots | R86: Meteor Shower | S86: Light Prism | T86: Karate Brick Break | U86: Rottening Spell | V86: Asteroid | W86: Enlightning Wisdom | X86: 0 | Y86: 23
A87: Vigor Feel | B87: Magic | C87: 1350 | I87: 84 | J87: Chrome | K87: 3 | L87: Metal | M87: Ice | P87: Hard Charge | Q87: Magneto | R87: Ice Spikes | S87: Rust | T87: Head Butt | U87: Cannon Balls | V87: Snow Storm | W87: Ninja Stars | X87: 0 | Y87: 17
A88: War Fist | B88: War | C88: 1500 | I88: 85 | J88: Citadel | K88: 5 | L88: War | M88: Light | P88: Hard Charge | Q88: Giant Crack | R88: Giant Mouth | S88: Light Star | T88: Karate Brick Break | U88: Astro Hit | V88: War Fist | W88: Enlightning Wisdom | X88: 0 | Y88: 23
A89: Whirlpool | B89: Sea | C89: 1350 | I89: 86 | J89: Clay | K89: 4 | L89: Flame | M89: Nature | N89: War | P89: Judo Kick | Q89: Light Prism | R89: Meteor Shower | S89: Giant Mouth | T89: Karate Brick Break | U89: Enlightning Wisdom | V89: Asteroid | W89: Whirlpool | X89: 0 | Y89: 16
I90: 87 | J90: Cloud | K90: 2 | L90: Flame | M90: Sea | P90: Flying Kick | Q90: Lava Balls | R90: Flooding | S90: Flaming Arrows | T90: Stunning Hit | U90: Nuclear Hit | V90: Acid Rain | W90: Nuclear Hit | X90: 1 | Y90: 5/7
I91: 88 | J91: Clover | K91: 4 | L91: Nature | M91: Ice | P91: Punch | Q91: Leaf Blast | R91: Head Butt | S91: Ice Spikes | T91: Deus Sword | U91: Bee Hive | V91: Cryogenic Freeze | W91: Asteroid | X91: 0 | Y91: 17
I92: 89 | J92: Cold Star | K92: 4 | L92: Light | M92: Ice | P92: Hard Charge | Q92: Light Star | R92: Snow Storm | S92: Frost Nova | T92: Out of Time | U92: Icy Wind | V92: Enlightning Wisdom | W92: Cryogenic Freeze | X92: 1 | Y92: 20/28
I93: 90 | J93: Colossal | K93: 4 | L93: War | M93: Terra | P93: Stunning Hit | Q93: Giant Claw | R93: Judo Kick | S93: Earthquake | T93: Hammer Fist | U93: War Fist | V93: Deus Sword | W93: Sand Storm | X93: 1 | Y93: 32/40
I94: 91 | J94: Columbus | K94: 4 | L94: Terra | M94: Sea | P94: Hard Charge | Q94: Earthquake | R94: Stunning Hit | S94: Flooding | T94: Hammer Fist | U94: Sand Storm | V94: Karate Brick Break | W94: Whirlpool | X94: 0 | Y94: 17
I95: 92 | J95: Cookie | K95: 4 | L95: Nature | M95: Terra | P95: Hard Charge | Q95: Stitching Roots | R95: Stunning Hit | S95: Meteor Shower | T95: Hammer Fist | U95: Bee Hive | V95: Karate Brick Break | W95: Sand Storm | X95: 0 | Y95: 17
I96: 93 | J96: Cool Fire | K96: 4 | L96: Flame | M96: Ice | P96: Stunning Hit | Q96: Ice Spikes | R96: Flaming Arrows | S96: Snow Storm | T96: Judo Kick | U96: Cryogenic Freeze | V96: Flamethrower | W96: Magma Storm | X96: 1 | Y96: 9/15
I97: 94 | J97: Coral | K97: 3 | L97: Nature | M97: Sea | P97: Hard Charge | Q97: Flooding | R97: Stunning Hit | S97: Leaf Blast | T97: Head Butt | U97: Storm | V97: Judo Kick | W97: Bee Hive | X97: 1 | Y97: 9/15
I98: 95 | J98: Core | K98: 4 | L98: Light | M98: Pure | P98: Stunning Hit | Q98: Light Prism | R98: Pure Energy | S98: Light Star | T98: Enlightning Wisdom | U98: Hypnosis | V98: Out of Time | W98: Pure Light | X98: 1 | Y98: 58/68
I99: 96 | J99: Cosmo | K99: 4 | L99: Terra | M99: Electric | P99: Flying Kick | Q99: Meteor Shower | R99: Stunning Hit | S99: Electric Shock | T99: Hammer Fist | U99: Asteroid | V99: Deus Sword | W99: Electro Ball | X99: 0 | Y99: 17
I100: 97 | J100: Cow | K100: 8 | L100: Light | M100: Metal | N100: Pure | P100: Judo Kick | Q100: Light Prism | R100: Nail Rain | S100: Pure Energy | T100: Karate Brick Break | U100: Out of Time | V100: Ninja Stars | W100: Pure Light | X100: 0 | Y100: 23
I101: 98 | J101: Crest | K101: 4 | L101: Electric | M101: Terra | N101: Nature | P101: Karate Brick Break | Q101: Laser Beam | R101: Earthquake | S101: Leaf Blast | T101: Deus Sword | U101: Tesla Ray | V101: Tumble Weed | W101: Rottening Spell | X101: 0 | Y101: 17
I102: 99 | J102: Crossfire | K102: 3 | L102: Flame | M102: Terra | N102: Electric | P102: Hard Charge | Q102: Flaming Arrows | R102: Meteor Shower | S102: Lightning | T102: Hammer Fist | U102: Magma Storm | V102: Asteroid | W102: Tesla Ray | X102: 0 | Y102: 17
I103: 100 | J103: Cruel | K103: 9 | L103: Legend | M103: Chaos | N103: Dark | P103: Punch | Q103: Paralyzing Spell | R103: Infernal Crack | S103: Life Drain | T103: Flying Kick | U103: Rainbow | V103: Destiny Chains | W103: The Grim Reaper | X103: 0 | Y103: 58
I104: 101 | J104: Crystal | K104: 5 | L104: Legend | P104: Head Butt | Q104: Legendary Wind | R104: Paralyzing Spell | S104: Rainbow | T104: Karate Brick Break | U104: Deus Sword | V104: Aurora Borealis | W104: Legend Spell | X104: 1 | Y104: 50/58
I105: 102 | J105: Cyborg | K105: 4 | L105: Metal | M105: Dark | N105: War | P105: Head Butt | Q105: Magneto | R105: Life Drain | S105: Giant Mouth | T105: Deus Sword | U105: Cannon Balls | V105: The Grim Reaper | W105: Astro Hit | X105: 0 | Y105: 23
I106: 103 | J106: Cyclops | K106: 4 | L106: Terra | M106: Flame | N106: War | P106: Head Butt | Q106: Meteor Shower | R106: Nuclear Hit | S106: Giant Mouth | T106: Karate Brick Break | U106: Sand Storm | V106: Magma Storm | W106: Astro Hit | X106: 0 | Y106: 23
I107: 104 | J107: Da Vinci | K107: 4 | L107: Nature | M107: Light | N107: Pure | P107: Hard Charge | Q107: Poison Ivy | R107: Light Sword | S107: Pure Energy | T107: Deus Sword | U107: Bee Hive | V107: Light Star | W107: Pure Energy | X107: 0 | Y107: 23
I108: 105 | J108: Dainty | K108: 4 | L108: Ice | M108: Terra | N108: Nature | P108: Punch | Q108: Frost Nova | R108: Tumble Weed | S108: Poison Ivy | T108: Hammer Fist | U108: Icy Wind | V108: Asteroid | W108: Leaf Blast | X108: 0 | Y108: 23
I109: 106 | J109: Dandelion | K109: 2 | L109: Nature | M109: Ice | P109: Flying Kick | Q109: Stitching Roots | R109: Ice Spikes | S109: Poison Ivy | T109: Hard Charge | U109: Leaf Blast | V109: Snow Storm | W109: Rottening Spell | X109: 1 | Y109: 9/15
I110: 107 | J110: Dark | K110: 1 | L110: Dark | P110: Punch | Q110: Life Drain | R110: Stunning Hit | S110: Leech | T110: Hard Charge | U110: Ghost Cloud | V110: Head Butt | W110: The Grim Reaper | X110: 1 | Y110: 2/2
I111: 108 | J111: Dark Angel | K111: 5 | L111: Light | M111: Pure | P111: Judo Kick | Q111: Light Prism | R111: Leech | S111: Hypnosis | T111: Magma Storm | U111: Out of Time | V111: Black Hole | W111: Pure Light | X111: 0 | Y111: 23
I112: 109 | J112: Dark Elf | K112: 4 | L112: Dark | M112: Ice | N112: War | P112: Stunning Hit | Q112: Leech | R112: Snow Storm | S112: Giant Claw | T112: Hammer Fist | U112: The Grim Reaper | V112: Icy Wind | W112: Astro Hit | X112: 1 | Y112: 58/68
I113: 110 | J113: Dark Fire | K113: 3 | L113: Dark | M113: Flame | P113: Hard Charge | Q113: Leech | R113: Nuclear Hit | S113: Ghost Cloud | T113: Judo Kick | U113: The Grim Reaper | V113: Magma Storm | W113: Black Hole | X113: 1 | Y113: 9/15
I114: 111 | J114: Dark Jaws | K114: 5 | L114: Flame | M114: War | N114: Dark | O114: Light | P114: Nuclear Hit | Q114: Ghost Cloud | R114: Giant Claw | S114: Light Star | T114: Magma Storm | U114: Black Hole | V114: War Fist | W114: Out of Time | X114: 0 | Y114: 16
I115: 112 | J115: Dark Lord | K115: 8 | L115: Legend | M115: Dark | P115: Hammer Fist | Q115: Legendary Wind | R115: The Grim Reaper | S115: Paralyzing Spell | T115: Karate Brick Break | U115: Aurora Borealis | V115: Black Hole | W115: Legend Spell | X115: 0 | Y115: 23
I116: 113 | J116: Dark Stone | K116: 4 | L116: War | M116: Dark | P116: Punch | Q116: Giant Crack | R116: Stunning Hit | S116: Leech | T116: Astro Hit | U116: The Grim Reaper | V116: War Fist | W116: Black Hole | X116: 1 | Y116: 32/40
I117: 114 | J117: Deep Forest | K117: 4 | L117: Nature | M117: Terra | P117: Hard Charge | Q117: Meteor Shower | R117: Head Butt | S117: Leaf Blast | T117: Head Butt | U117: Tumble Weed | V117: Hammer Fist | W117: Bee Hive | X117: 1 | Y117: 16/24
I118: 115 | J118: Deep Red | K118: 4 | L118: Flame | M118: Metal | N118: Dark | P118: Judo Kick | Q118: Nuclear Hit | R118: Life Drain | S118: Nail Rain | T118: Hammer Fist | U118: Flamethrower | V118: Black Hole | W118: Cannon Balls | X118: 1 | Y118: 17
I119: 116 | J119: Deja Vu | K119: 4 | L119: Flame | M119: Electric | N119: War | P119: Hammer Fist | Q119: Lava Balls | R119: Lightning | S119: Giant Mouth | T119: Deus Sword | U119: Flamethrower | V119: Laser Beam | W119: Giant Claw | X119: 0 | Y119: 23
I120: 117 | J120: Demigod | K120: 5 | L120: Legend | M120: War | N120: Light | P120: Judo Kick | Q120: Paralyzing Spell | R120: Giant Mouth | S120: Light Sword | T120: Deus Sword | U120: Rainbow | V120: Astro Hit | W120: Out of Time | X120: 0 | Y120: 17
I121: 118 | J121: Demon | K121: 4 | L121: Dark | M121: Flame | N121: Metal | P121: Stunning Hit | Q121: Leech | R121: Flaming Arrows | S121: Rust | T121: Hammer Fist | U121: The Grim Reaper | V121: Magma Storm | W121: Cannon Balls | X121: 0 | Y121: 17
I122: 119 | J122: Depth | K122: 4 | L122: Dark | M122: War | N122: Metal | P122: Judo Kick | Q122: Leech | R122: Giant Mouth | S122: Rust | T122: Deus Sword | U122: The Grim Reaper | V122: War Fist | W122: Ninja Stars | X122: 0 | Y122: 16
I123: 120 | J123: Desert | K123: 4 | L123: Terra | M123: Flame | N123: Electric | P123: Hard Charge | Q123: Earthquake | R123: Lava Balls | S123: Lightning | T123: Hammer Fist | U123: Sand Storm | V123: Flamethrower | W123: Electro Ball | X123: 0 | Y123: 23
I124: 121 | J124: Detective | K124: 4 | L124: Terra | M124: Sea | N124: Dark | P124: Flying Kick | Q124: Earthquake | R124: Flooding | S124: Ghost Cloud | T124: Hammer Fist | U124: Asteroid | V124: Whirlpool | W124: Black Hole | X124: 0 | Y124: 23
I125: 122 | J125: Deus Pet | K125: 4 | L125: Terra | M125: Flame | P125: Flying Kick | Q125: Earthquake | R125: Flaming Arrows | S125: Meteor Shower | T125: Stunning Hit | U125: Tumble Weed | V125: Nuclear Hit | W125: Asteroid | X125: 0 | Y125: 1m
I126: 123 | J126: Diamond | K126: 4 | L126: Ice | M126: Terra | N126: Nature | P126: Hard Charge | Q126: Ice Spikes | R126: Earthquake | S126: Stitching Roots | T126: Deus Sword | U126: Icy Wind | V126: Asteroid | W126: Rottening Spell | X126: 1 | Y126: 16/24
I127: 124 | J127: Dolphin | K127: 4 | L127: Sea | M127: Light | P127: Stunning Hit | Q127: Flooding | R127: Head Butt | S127: Light Star | T127: Acid Rain | U127: Enlightning Wisdom | V127: Whirlpool | W127: Out of Time | X127: 0 | Y127: 23
I128: 125 | J128: Double Electric | K128: 4 | L128: Electric | M128: Electric | P128: Hard Charge | Q128: Laser Beam | R128: Punch | S128: Electric Shock | T128: Hammer Fist | U128: Electro Ball | V128: Karate Brick Break | W128: Tesla Ray | X128: 0 | Y128: 13
I129: 126 | J129: Double Flame | K129: 4 | L129: Flame | M129: Flame | P129: Hard Charge | Q129: Flaming Arrows | R129: Stunning Hit | S129: Nuclear Hit | T129: Deus Sword | U129: Flamethrower | V129: Hammer Fist | W129: Magma Storm | X129: 0 | Y129: 30s
I130: 127 | J130: Double Ice | K130: 4 | L130: Ice | M130: Ice | P130: Stunning Hit | Q130: Ice Spikes | R130: Head Butt | S130: Snow Storm | T130: Deus Sword | U130: Icy Wind | V130: Karate Brick Break | W130: Cryogenic Freeze | X130: 0 | Y130: 15
I131: 128 | J131: Double Metal | K131: 4 | L131: Metal | M131: Metal | P131: Judo Kick | Q131: Nail Rain | R131: Flying Kick | S131: Magneto | T131: Hammer Fist | U131: Cannon Balls | V131: Deus Sword | W131: Ninja Stars | X131: 0 | Y131: 13
I132: 129 | J132: Double Nature | K132: 4 | L132: Nature | M132: Nature | P132: Flying Kick | Q132: Stitching Roots | R132: Head Butt | S132: Leaf Blast | T132: Karate Brick Break | U132: Rottening Spell | V132: Deus Sword | W132: Bee Hive | X132: 0 | Y132: 13
I133: 130 | J133: Double Sea | K133: 4 | L133: Sea | M133: Sea | P133: Head Butt | Q133: Tsunami | R133: Judo Kick | S133: Storm | T133: Karate Brick Break | U133: Acid Rain | V133: Hammer Fist | W133: Whirlpool | X133: 0 | Y133: 5m
I134: 131 | J134: Double Terra | K134: 4 | L134: Terra | M134: Terra | P134: Punch | Q134: Earthquake | R134: Flying Kick | S134: Meteor Shower | T134: Hammer Fist | U134: Asteroid | V134: Karate Brick Break | W134: Sand Storm | X134: 0 | Y134: 15s
I135: 132 | J135: Dragonfly | K135: 3 | L135: Nature | M135: Metal | P135: Hard Charge | Q135: Poison Ivy | R135: Head Butt | S135: Nail Rain | T135: Head Butt | U135: Rottening Spell | V135: Karate Brick Break | W135: Rust | X135: 1 | Y135: 13/19
I136: 133 | J136: Dragotron | K136: 5 | L136: Legend | P136: Head Butt | Q136: Legendary Wind | R136: Judo Kick | S136: Paralyzing Spell | T136: Hammer Fist | U136: Aurora Borealis | V136: Deus Sword | W136: Legend Spell | X136: 0 | Y136: 58
I137: 134 | J137: Dreamcatcher | K137: 8 | L137: Dream | M137: Soul | P137: Judo Kick | Q137: Confusing Wake | R137: Soul Breaker | S137: Poisonous Dream | T137: Karate Brick Break | U137: Deus Sword | V137: Trance | W137: Supernatural | X137: 1 | Y137: 16/24
I138: 135 | J138: Droconos | K138: 5 | L138: Legend | P138: Stunning Hit | Q138: Legendary Wind | R138: Head Butt | S138: Rainbow | T138: Karate Brick Break | U138: Aurora Borealis | V138: Deus Sword | W138: Legend Spell | X138: 1 | Y138: 50/58
I139: 136 | J139: Dual | K139: 5 | L139: Legend | P139: Flying Kick | Q139: Legendary Wind | R139: Hard Charge | S139: Paralyzing Spell | T139: Stunning Hit | U139: Rainbow | V139: Karate Brick Break | W139: Aurora Borealis | X139: 0 | Y139: 58
I140: 137 | J140: Dujur | K140: 5 | L140: Flame | M140: Electric | N140: Ice | P140: Hard Charge | Q140: Frost Nova | R140: Electric Shock | S140: Nuclear Hit | T140: Judo Kick | U140: Cryogenic Freeze | V140: Electro Ball | W140: Flamethrower | X140: 1 | Y140: 9/15
I141: 138 | J141: Earth Day | K141: 4 | L141: Terra | M141: Nature | N141: Light | P141: Head Butt | Q141: Earthquake | R141: Stitching Roots | S141: Light Star | T141: Hammer Fist | U141: Bee Hive | V141: Deus Sword | W141: Light Prism | X141: 0 | Y141: 23
I142: 139 | J142: Easter | K142: 4 | L142: Terra | M142: Light | N142: Nature | P142: Head Butt | Q142: Earthquake | R142: Light Star | S142: Leaf Blast | T142: Karate Brick Break | U142: Sand Storm | V142: Enlightning Wisdom | W142: Rottening Spell | X142: 0 | Y142: 23
I143: 140 | J143: Eclipse | K143: 4 | L143: Sea | M143: Dark | N143: Light | P143: Hard Charge | Q143: Flooding | R143: Life Drain | S143: Light Star | T143: Hammer Fist | U143: Acid Rain | V143: Black Hole | W143: Out of Time | X143: 0 | Y143: 17
I144: 141 | J144: Eggster | K144: 4 | L144: Flame | M144: Sea | N144: Nature | P144: Head Butt | Q144: Flaming Arrows | R144: Storm | S144: Leaf Blast | T144: Karate Brick Break | U144: Flamethrower | V144: Whirlpool | W144: Bee Hive | X144: 0 | Y144: 23
I145: 142 | J145: Electric | K145: 1 | L145: Electric | P145: Punch | Q145: Lightning | R145: Stunning Hit | S145: Laser Beam | T145: Hard Charge | U145: Electric Shock | V145: Head Butt | W145: Electro Ball | X145: 1 | Y145: 30m/30m
I146: 143 | J146: Elements | K146: 4 | L146: Terra | M146: Flame | N146: Sea | P146: Hard Charge | Q146: Earthquake | R146: Flaming Arrows | S146: Tsunami | T146: Karate Brick Break | U146: Asteroid | V146: Magma Storm | W146: Whirlpool | X146: 0 | Y146: 1m
I147: 144 | J147: Elfic | K147: 4 | L147: War | M147: Light | P147: Stunning Hit | Q147: Giant Claw | R147: Head Butt | S147: Light Sword | T147: Astro Hit | U147: Out of Time | V147: War Fist | W147: Enlightning Wisdom | X147: 1 | Y147: 32/40
I148: 145 | J148: Emerald | K148: 4 | L148: Metal | M148: Nature | P148: Hard Charge | Q148: Poison Ivy | R148: Head Butt | S148: Nail Rain | T148: Head Butt | U148: Rottening Spell | V148: Karate Brick Break | W148: Rust | X148: 1 | Y148: 16/24
I149: 146 | J149: Energy | K149: 4 | L149: Terra | M149: Electric | P149: Flying Kick | Q149: Earthquake | R149: Laser Beam | S149: Meteor Shower | T149: Deus Sword | U149: Tumble Weed | V149: Tesla Ray | W149: Sand Storm | X149: 0 | Y149: 23
I150: 147 | J150: Equinox | K150: 3 | L150: Dark | M150: Light | P150: Stunning Hit | Q150: Light Prism | R150: Leech | S150: Light Star | T150: Hammer Fist | U150: Life Drain | V150: Light Star | W150: Ghost Cloud | X150: 0 | Y150: 23
I151: 148 | J151: Evil Pumpkin | K151: 4 | L151: Dark | M151: Nature | P151: Head Butt | Q151: Leech | R151: Judo Kick | S151: Leaf Blast | T151: Hammer Fist | U151: The Grim Reaper | V151: Karate Brick Break | W151: Bee Hive | X151: 0 | Y151: 9
I152: 149 | J152: Explosive | K152: 5 | L152: Flame | M152: Metal | N152: Pure | P152: Hard Charge | Q152: Lava Balls | R152: Magneto | S152: Hypnosis | T152: Hammer Fist | U152: Magma Storm | V152: Ninja Stars | W152: Pure Energy | X152: 0 | Y152: 23
I153: 150 | J153: Fairy | K153: 3 | L153: Nature | M153: Ice | P153: Stunning Hit | Q153: Poison Ivy | R153: Snow Storm | S153: Leaf Blast | T153: Karate Brick Break | U153: Rottening Spell | V153: Icy Wind | W153: Bee Hive | X153: 0 | Y153: 17
I154: 151 | J154: Fallen Angel | K154: 4 | L154: Light | M154: Dark | P154: Flying Kick | Q154: Light Sword | R154: Stunning Hit | S154: Ghost Cloud | T154: Light Prism | U154: The Grim Reaper | V154: Light Star | W154: Black Hole | X154: 1 | Y154: 20/28
I155: 152 | J155: Father's Day | K155: 4 | L155: Sea | M155: Metal | N155: Light | P155: Stunning Hit | Q155: Storm | R155: Rust | S155: Light Star | T155: Deus Sword | U155: Whirlpool | V155: Cannon Balls | W155: Light Star | X155: 0
I156: 153 | J156: Faust | K156: 5 | L156: War | M156: Light | N156: Ice | O156: Dark | P156: Giant Crack | Q156: Light Sword | R156: Frost Nova | S156: Life Drain | T156: Astro Hit | U156: Out of Time | V156: Ice Spikes | W156: Ghost Cloud | X156: 0 | Y156: 40
I157: 154 | J157: Felidae | K157: 4 | L157: Legend | P157: Hammer Fist | Q157: Legendary Wind | R157: Paralyzing Spell | S157: Rainbow | T157: Karate Brick Break | U157: Deus Sword | V157: Aurora Borealis | W157: Legend Spell | X157: 0 | Y157: 58
I158: 155 | J158: Fervour | K158: 5 | L158: War | M158: Pure | N158: Flame | P158: Giant Crack | Q158: Hypnosis | R158: Flaming Arrows | S158: Leech | T158: Astro Hit | U158: Pure Energy | V158: Flamethrower | W158: Black Hole | X158: 0 | Y158: 40
I159: 156 | J159: Firebird | K159: 2 | L159: Flame | M159: Nature | P159: Flying Kick | Q159: Lava Balls | R159: Poison Ivy | S159: Flaming Arrows | T159: Stunning Hit | U159: Nuclear Hit | V159: Head Butt | W159: Rottening Spell | X159: 1 | Y159: 7/13
I160: 157 | J160: Firefighter | K160: 4 | L160: Flame | M160: Terra | N160: Metal | P160: Stunning Hit | Q160: Flaming Arrows | R160: Tumble Weed | S160: Rust | T160: Karate Brick Break | U160: Magma Storm | V160: Sand Storm | W160: Ninja Stars | X160: 0 | Y160: 24
I161: 158 | J161: Flame | K161: 1 | L161: Flame | P161: Punch | Q161: Lava Balls | R161: Flaming Arrows | S161: Nuclear Hit | T161: Hard Charge | U161: Head Butt | V161: Flamethrower | W161: Magma Storm | X161: 1 | Y161: 30s/30s
I162: 159 | J162: Flaming Rock | K162: 2 | L162: Terra | M162: Flame | P162: Flying Kick | Q162: Earthquake | R162: Flaming Arrows | S162: Meteor Shower | T162: Stunning Hit | U162: Tumble Weed | V162: Nuclear Hit | W162: Asteroid | X162: 1 | Y162: 30s/30s
I163: 160 | J163: Flawless | K163: 4 | L163: Beauty | M163: Dream | P163: Stunning Hit | Q163: Floral Coup | R163: Poisonous Dream | S163: Bright Aura | T163: Karate Brick Break | U163: Deus Sword | V163: Grace Touch | W163: Trance | X163: 1 | Y163: 16/24
I164: 161 | J164: Fluorescent | K164: 2 | L164: Electric | M164: Ice | P164: Flying Kick | Q164: Lightning | R164: Ice Spikes | S164: Laser Beam | T164: Stunning Hit | U164: Laser Beam | V164: Electric Shock | W164: Icy Wind | X164: 1 | Y164: 13/19
I165: 162 | J165: Force | K165: 4 | L165: Light | M165: War | N165: Pure | P165: Punch | Q165: Light Prism | R165: Giant Crack | S165: Pure Light | T165: Judo Kick | U165: Out of Time | V165: Astro Hit | W165: Pure Energy | X165: 0 | Y165: 23
I166: 163 | J166: Forestry | K166: 3 | L166: Nature | M166: Light | P166: Judo Kick | Q166: Stitching Roots | R166: Light Sword | S166: Poison Ivy | T166: Deus Sword | U166: Rottening Spell | V166: Out of Time | W166: Bee Hive | X166: 0 | Y166: 17
I167: 164 | J167: Forge | K167: 5 | L167: Metal | M167: Terra | N167: Ice | O167: Flame | P167: Rust | Q167: Meteor Shower | R167: Frost Nova | S167: Flaming Arrows | T167: Cannon Balls | U167: Asteroid | V167: Cryogenic Freeze | W167: Flamethrower | X167: 1 | Y167: 62/72
I168: 165 | J168: Fossil | K168: 3 | L168: Dark | M168: Ice | P168: Hard Charge | Q168: Leech | R168: Stunning Hit | S168: Snow Storm | T168: Head Butt | U168: Ghost Cloud | V168: Judo Kick | W168: Icy Wind | X168: 1 | Y168: 16/24
I169: 166 | J169: Frankie | K169: 4 | L169: Terra | M169: Electric | P169: Hard Charge | Q169: Meteor Shower | R169: Laser Beam | S169: Tumble Weed | T169: Hammer Fist | U169: Asteroid | V169: Electro Ball | W169: Sand Storm | X169: 0 | Y169: 17
I170: 167 | J170: Frost | K170: 5 | L170: Sea | M170: Ice | N170: Dark | P170: Head Butt | Q170: Tsunami | R170: Ice Spikes | S170: Life Drain | T170: Deus Sword | U170: Whirlpool | V170: Cryogenic Freeze | W170: Black Hole | X170: 0 | Y170: 23
I171: 168 | J171: Frostbite | K171: 4 | L171: Sea | M171: Ice | N171: Dark | P171: Stunning Hit | Q171: Tsunami | R171: Frost Nova | S171: Leech | T171: Hammer Fist | U171: Acid Rain | V171: Snow Storm | W171: The Grim Reaper | X171: 0 | Y171: 23
I172: 169 | J172: Frozen Wind | K172: 4 | L172: Ice | M172: Sea | P172: Hard Charge | Q172: Frost Nova | R172: Head Butt | S172: Storm | T172: Hammer Fist | U172: Icy Wind | V172: Karate Brick Break | W172: Whirlpool | X172: 0 | Y172: 17
I173: 170 | J173: Fur | K173: 4 | L173: Ice | M173: Flame | N173: War | P173: Hard Charge | Q173: Snow Storm | R173: Nuclear Hit | S173: Giant Crack | T173: Judo Kick | U173: Icy Wind | V173: Flamethrower | W173: Astro Hit | X173: 0 | Y173: 23
I174: 171 | J174: Gaia | K174: 4 | L174: Light | M174: Nature | P174: Flying Kick | Q174: Light Prism | R174: Stunning Hit | S174: Leaf Blast | T174: Hammer Fist | U174: Enlightning Wisdom | V174: Karate Brick Break | W174: Bee Hive | X174: 1 | Y174: 20/28
I175: 172 | J175: Gargoyle | K175: 4 | L175: Terra | M175: Ice | N175: Dark | P175: Stunning Hit | Q175: Tumble Weed | R175: Ice Spikes | S175: Leech | T175: Karate Brick Break | U175: Asteroid | V175: Icy Wind | W175: The Grim Reaper | X175: 1 | Y175: 11/17
I176: 173 | J176: Genie | K176: 4 | L176: Flame | M176: Light | P176: Punch | Q176: Lava Balls | R176: Flaming Arrows | S176: Light Prism | T176: Hammer Fist | U176: Flamethrower | V176: Magma Storm | W176: Light Star | X176: 0 | Y176: 23
I177: 174 | J177: Ghost | K177: 4 | L177: Dark | M177: Terra | P177: Stunning Hit | Q177: Meteor Shower | R177: Head Butt | S177: Ghost Cloud | T177: Judo Kick | U177: Asteroid | V177: Hammer Fist | W177: The Grim Reaper | X177: 0 | Y177: 24
I178: 175 | J178: Giant Wings | K178: 4 | L178: Flame | M178: Terra | N178: Ice | P178: Hard Charge | Q178: Flaming Arrows | R178: Meteor Shower | S178: Ice Spikes | T178: Deus Sword | U178: Flamethrower | V178: Asteroid | W178: Icy Wind | X178: 0 | Y178: 17
I179: 176 | J179: Gingerbread | K179: 4 | L179: Sea | M179: Terra | N179: Light | P179: Judo Kick | Q179: Flooding | R179: Meteor Shower | S179: Light Prism | T179: Karate Brick Break | U179: Acid Rain | V179: Sand Storm | W179: Out of Time | X179: 0 | Y179: 23
I180: 177 | J180: Glacial | K180: 4 | L180: Ice | M180: Electric | N180: Nature | P180: Punch | Q180: Snow Storm | R180: Lightning | S180: Leaf Blast | T180: Deus Sword | U180: Cryogenic Freeze | V180: Electro Ball | W180: Rottening Spell | X180: 1 | Y180: 11/17
I181: 178 | J181: Godfather | K181: 5 | L181: Dark | M181: War | P181: Judo Kick | Q181: Life Drain | R181: Leech | S181: Giant Crack | T181: Karate Brick Break | U181: The Grim Reaper | V181: Black Hole | W181: War Fist | X181: 0 | Y181: 23
I182: 179 | J182: Gold | K182: 3 | L182: Metal | M182: Electric | P182: Hard Charge | Q182: Nail Rain | R182: Electric Shock | S182: Magneto | T182: Head Butt | U182: Rust | V182: Tesla Ray | W182: Cannon Balls | X182: 1 | Y182: 9/15
I183: 180 | J183: Gold Rush | K183: 3 | L183: Terra | M183: Flame | P183: Punch | Q183: Earthquake | R183: Meteor Shower | S183: Nuclear Hit | T183: Deus Sword | U183: Tumble Weed | V183: Asteroid | W183: Magma Storm | X183: 0 | Y183: 17
I184: 181 | J184: Golden Hand | K184: 7 | L184: Electric | M184: War | N184: Light | P184: Hammer Fist | Q184: Laser Beam | R184: Giant Crack | S184: Light Prism | T184: Karate Brick Break | U184: Tesla Ray | V184: Giant Mouth | W184: Enlightning Wisdom | X184: 0 | Y184: 23
I185: 182 | J185: Golem | K185: 5 | L185: Terra | M185: Pure | P185: Stunning Hit | Q185: Meteor Shower | R185: Tumble Weed | S185: Hypnosis | T185: Karate Brick Break | U185: Asteroid | V185: Sand Storm | W185: Pure Light | X185: 0 | Y185: 23
I186: 183 | J186: Graduation | K186: 4 | L186: Nature | M186: Light | N186: Ice | P186: Stunning Hit | Q186: Poison Ivy | R186: Light Prism | S186: Snow Storm | T186: Karate Brick Break | U186: Rottening Spell | V186: Enlightning Wisdom | W186: Cryogenic Freeze | X186: 0 | Y186: 23
I187: 184 | J187: Granite | K187: 4 | L187: Terra | M187: Flame | P187: Flying Kick | Q187: Earthquake | R187: Hard Charge | S187: Flaming Arrows | T187: Hammer Fist | U187: Asteroid | V187: Deus Sword | W187: Magma Storm | X187: 0 | Y187: 17
I188: 185 | J188: Gravity | K188: 7 | L188: Pure | M188: Metal | N188: Electric | P188: Hypnosis | Q188: Rust | R188: Laser Beam | S188: Light Prism | T188: Pure Light | U188: Cannon Balls | V188: Tesla Ray | W188: Out of Time | X188: 0 | Y188: 40
I189: 186 | J189: Great White | K189: 3 | L189: Ice | M189: Terra | P189: Hard Charge | Q189: Earthquake | R189: Head Butt | S189: Ice Spikes | T189: Judo Kick | U189: Tumble Weed | V189: Hammer Fist | W189: Icy Wind | X189: 1 | Y189: 16/24
I190: 187 | J190: Greenfluid | K190: 5 | L190: Nature | M190: Sea | N190: Electric | P190: Head Butt | Q190: Poison Ivy | R190: Flooding | S190: Electric Shock | T190: Rottening Spell | U190: Tesla Ray | V190: Acid Rain | W190: Bee Hive | X190: 1 | Y190: 58/68
I191: 188 | J191: Gummy | K191: 4 | L191: Nature | M191: Electric | P191: Stunning Hit | Q191: Laser Beam | R191: Poison Ivy | S191: Electric Shock | T191: Judo Kick | U191: Electro Ball | V191: Rottening Spell | W191: Tesla Ray | X191: 1 | Y191: 7/13
I192: 189 | J192: Gurgle | K192: 3 | L192: Magic | M192: Happy | P192: Judo Kick | Q192: Brilliant Firework | R192: Magic Blow | S192: Festive Lights | T192: Karate Brick Break | U192: Deus Sword | V192: Appeal | W192: Vigor Feel | X192: 1 | Y192: 16/24
I193: 190 | J193: Hades | K193: 4 | L193: Sea | M193: Dark | P193: Hard Charge | Q193: Flooding | R193: Head Butt | S193: Ghost Cloud | T193: Hammer Fist | U193: Acid Rain | V193: Karate Brick Break | W193: The Grim Reaper | X193: 0 | Y193: 17
I194: 191 | J194: Halloween | K194: 4 | L194: Dark | M194: Nature | P194: Stunning Hit | Q194: Leech | R194: Poison Ivy | S194: Ghost Cloud | T194: Karate Brick Break | U194: The Grim Reaper | V194: Rottening Spell | W194: Black Hole | X194: 0 | Y194: 17
I195: 192 | J195: Hammer | K195: 4 | L195: Metal | M195: Sea | P195: Magneto | Q195: Tsunami | R195: Stunning Hit | S195: Flooding | T195: Hard Charge | U195: Storm | V195: Judo Kick | W195: Storm | X195: 1 | Y195: 11/17
I196: 193 | J196: Handy | K196: 4 | L196: Terra | M196: Flame | N196: Metal | P196: Head Butt | Q196: Earthquake | R196: Lava Balls | S196: Nail Rain | T196: Deus Sword | U196: Tumble Weed | V196: Flamethrower | W196: Rust | X196: 0 | Y196: 23
I197: 194 | J197: Hansel & Gretel | K197: 4 | L197: Nature | M197: Flame | N197: Terra | P197: Punch | Q197: Stitching Roots | R197: Flaming Arrows | S197: Tumble Weed | T197: Karate Brick Break | U197: Rottening Spell | V197: Flamethrower | W197: Sand Storm | X197: 0 | Y197: 16
I198: 195 | J198: Hawaiian | K198: 3 | L198: Nature | M198: Electric | P198: Punch | Q198: Stitching Roots | R198: Laser Beam | S198: Electric Shock | T198: Hammer Fist | U198: Rottening Spell | V198: Electro Ball | W198: Tesla Ray | X198: 0 | Y198: 17
I199: 196 | J199: Heart | K199: 4 | L199: Flame | M199: Light | P199: Punch | Q199: Flaming Arrows | R199: Judo Kick | S199: Light Prism | T199: Karate Brick Break | U199: Light Star | V199: Flamethrower | W199: Enlightning Wisdom | X199: 0 | Y199: 17
I200: 197 | J200: Hearts Queen | K200: 4 | L200: Flame | M200: Metal | P200: Punch | Q200: Stunning Hit | R200: Lightning | S200: Nail Rain | T200: Hammer Fist | U200: Karate Brick Break | V200: Electro Ball | W200: Cannon Balls | X200: 0 | Y200: 17
I201: 198 | J201: Heat | K201: 4 | L201: Dark | M201: Metal | N201: Flame | P201: Head Butt | Q201: Leech | R201: Nail Rain | S201: Nuclear Hit | T201: Hammer Fist | U201: Ghost Cloud | V201: Magneto | W201: Magma Storm | X201: 0 | Y201: 23
... 529 more rows

Sheet Info
A1: Cost of Food
F2: Cost
A3: Food | B3: Time | D3: Collect | E3: Price | F3: XP | G3: Secs / unit | H3: Gold / unit | I3: XP / unit
A4: Dragon Belle | B4: 30s | C4: 30 | D4: 5 | E4: 50 | F4: 25 | G4: =C4/D4 -> 6.00 | H4: =E4/D4 -> 10.00 | I4: =F4/D4 -> 5.00
A5: Hot Dragon Chili | B5: 5m | C5: =5*60 -> 300 | D5: 25 | E5: 250 | F5: 250 | G5: =C5/D5 -> 12.00 | H5: =E5/D5 -> 10.00 | I5: =F5/D5 -> 10.00
A6: Caterpillar Lily | B6: 30m | C6: =30*60 -> 1,800 | D6: 75 | E6: 1,000 | F6: 1,000 | G6: 24.00 | H6: 13.33 | I6: 13.33
A7: Unicorn Horns | B7: 2h | C7: =2*3600 -> 7,200 | D7: 200 | E7: 5,000 | F7: 5,000 | G7: 36.00 | H7: 25.00 | I7: 25.00
A8: Ladybird Blossom | B8: 6h | C8: =6*3600 -> 21,600 | D8: 500 | E8: 15,000 | F8: 15,000 | G8: 43.20 | H8: 30.00 | I8: 30.00
A9: Rainbow Flower | B9: 3h | C9: =3*3600 -> 10,800 | D9: 2,250 | E9: 150,000 | F9: 18,750 | G9: 4.80 | H9: 66.67 | I9: 8.33
A10: Spike Balls | B10: 9h | C10: =9*3600 -> 32,400 | D10: 10,000 | E10: 1,000,000 | F10: 100,000 | G10: 3.24 | H10: 100.00 | I10: 10.00
A11: Flesh Eaters | B11: 12h | C11: =12*3600 -> 43,200 | D11: 25,000 | E11: 3,000,000 | F11: 150,000 | G11: 1.73 | H11: 120.00 | I11: 6.00
A12: Star Shines | B12: 24h | C12: =24*3600 -> 86,400 | D12: 150,000 | E12: 20,000,000 | F12: 1,250,000 | G12: 0.58 | H12: 133.33 | I12: 8.33
A15: Feeding
B17: Food
A18: Level | B18: Step | C18: Level | D18: Total
A19: 1 | B19: 5 | C19: =B19*4 -> 20 | D19: =C19 -> 20
A20: 2 | B20: 10 | C20: =B20*4 -> 40 | D20: =D19+C20 -> 60
A21: 3 | B21: 20 | C21: =B21*4 -> 80 | D21: =D20+C21 -> 140
A22: 4 | B22: 40 | C22: 160 | D22: 300
A23: 5 | B23: 80 | C23: 320 | D23: 620
A24: 6 | B24: 160 | C24: 640 | D24: 1,260
A25: 7 | B25: 320 | C25: 1,280 | D25: 2,540
A26: 8 | B26: 640 | C26: 2,560 | D26: 5,100
A27: 9 | B27: 1,280 | C27: 5,120 | D27: 10,220
A28: 10 | B28: 1,664 | C28: 6,656 | D28: 16,876
A29: 11 | B29: 2,163 | C29: 8,652 | D29: 25,528
A30: 12 | B30: 2,812 | C30: 11,248 | D30: 36,776
A31: 13 | B31: 3,656 | C31: 14,624 | D31: 51,400
A32: 14 | B32: 4,753 | C32: 19,012 | D32: 70,412
A33: 15 | B33: 6,178 | C33: 24,712 | D33: 95,124
A34: 16 | B34: 8,032 | C34: 32,128 | D34: 127,252
A35: 17 | B35: 10,441 | C35: 41,764 | D35: 169,016
A36: 18 | B36: 13,574 | C36: 54,296 | D36: 223,312
A37: 19 | B37: 17,646 | C37: 70,584 | D37: 293,896
A38: 20 | B38: 22,940 | C38: 91,760 | D38: 385,656
A39: 21 | B39: 29,822 | C39: 119,288 | D39: 504,944
A40: 22 | B40: 38,768 | C40: 155,072 | D40: 660,016
A41: 23 | B41: 50,398 | C41: 201,592 | D41: 861,608
A42: 24 | B42: 65,518 | C42: 262,072 | D42: 1,123,680
A43: 25 | B43: 85,173 | C43: 340,692 | D43: 1,464,372
A44: 26 | B44: 110,725 | C44: 442,900 | D44: 1,907,272
A45: 27 | B45: 143,943 | C45: 575,772 | D45: 2,483,044
A46: 28 | B46: 187,126 | C46: 748,504 | D46: 3,231,548
A47: 29 | B47: 243,264 | C47: 973,056 | D47: 4,204,604
A48: 30 | B48: 316,243 | C48: 1,264,972 | D48: 5,469,576
A49: 31 | B49: 347,867 | C49: 1,391,468 | D49: 6,861,044
A50: 32 | B50: 382,654 | C50: 1,530,616 | D50: 8,391,660
A51: 33 | B51: 420,919 | C51: 1,683,676 | D51: 10,075,336
A52: 34 | B52: 463,011 | C52: 1,852,044 | D52: 11,927,380
A53: 35 | B53: 509,312 | C53: 2,037,248 | D53: 13,964,628
A54: 36 | B54: 560,243 | C54: 2,240,972 | D54: 16,205,600
A55: 37 | B55: 616,267 | C55: 2,465,068 | D55: 18,670,668
A56: 38 | B56: 677,894 | C56: 2,711,576 | D56: 21,382,244
A57: 39 | B57: 745,683 | C57: 2,982,732 | D57: 24,364,976
A58: 40

Sheet Single Element Breeding
A1: Breeding Completion Chart for Single Element Dragons (level 4 - 9)
A3: Pure & Pure will give legendary dragons and have been ignored on this chart
B5: Dark | D5: Electric | F5: Flame | I5: Ice | K5: Archangel | N5: Metal | P5: Nature | R5: Sea | T5: Terra | V5: War | Y5: Pure
A6: Dark | B6: X
A7: Electric | B7: Neon | D7: X
A8: Flame | B8: Dark Fire | C8: Vampire | D8: Hot Metal | E8: Laser | F8: X
A9: Ice | B9: Penguin | D9: Fluorescent | E9: Moose | F9: X | I9: X
A10: Archangel | B10: X | D10: Photon | E10: Archangel | F10: Sun | I10: Cold Star | J10: Archangel | K10: X
A11: Metal | B11: Zombie | D11: Gold | E11: Battery | F11: Steampunk | G11: Medieval | I11: Pearl | J11: Platinum | K11: Rainbow | L11: Archangel | N11: X
A12: Nature | B12: Rattlesnake | C12: Carnivore Plant | D12: X | F12: Butterfly | G12: Spicy | H12: Firebird | I12: Mojito | J12: Dandelion | K12: Gaia | N12: Dragonfly | O12: Jade | P12: X
A13: Sea | B13: Pirate | C13: Petroleum | D13: Storm | E13: Lantern Fish | F13: Cloud | G13: Blizzard | I13: Ice Cream | J13: Icecube | K13: Luminescent | N13: Seashell | O13: Mercury | P13: Coral | Q13: Nenufar | R13: X
A14: Terra | B14: Venom | C14: Hedgehog | D14: Chameleon | E14: Sky | F14: Volcano | G14: Flaming Rock | I14: Alpine | J14: Snowflake | K14: Justice | N14: X | P14: Cactus | Q14: Tropical | R14: Mud | S14: Waterfall | T14: X
A15: War | B15: Dark Stone | C15: War | D15: Tesla | E15: War | F15: Juggernaut | I15: Nightwind | J15: War | K15: Elfic | L15: War | M15: Archangel | N15: Panzer | O15: War | P15: Red Woods | R15: X | T15: Colossal | V15: X
A16: Pure | B16: Pure Dark | D16: Pure Electric | F16: Pure Flame | I16: Pure Ice | K16: Zen | L16: Pure | M16: Archangel | N16: Pure Metal | P16: Pure Nature | R16: Pure Sea | T16: Pure Terra | V16: Kratus | W16: Pure | X16: War | Y16: X

Sheet Ancient World
A1: Ancient World
A3: Breeding
A4: Dragon 1 | C4: Dragon 2 | E4: Result | H4: Ancient Dragons | O4: Breedable | S4: Crafting | T4: Summon : | U4: Guardangel | Z4: Habitats | AE4: Gems | AH4: Shapes
A5: Name | B5: Level | C5: Name | D5: Level | F5: Habitat | H5: Dragon | I5: Level | J5: Elements | O5: Dragon | P5: Elements | S5: Gem | T5: Shape | U5: Required | V5: Done | W5: Clean | X5: Done | Z5: Name | AA5: Level | AB5: Upgrade | AC5: Time | AE5: 1 | AF5: Red - Ruby | AH5: Raw | AI5: 0
A6: Rebird | B6: =IF(ISBLANK(A6),"",VLOOKUP(A6,AncientDragonTable,2,0)) -> 0 | C6: Gorgoneia | D6: =IF(ISBLANK(C6),"",VLOOKUP(C6,AncientDragonTable,2,0)) -> 0 | E6: Mermaid | F6: Magic | H6: Guardangel | J6: Ancient | K6: Beauty | L6: Terra | O6: Red Rose | P6: Beauty | Q6: Chaos | S6: Red - Ruby | T6: Raw | U6: 5 | W6: =IF(ISBLANK(S6),"",U6*POWER(5,VLOOKUP(T6,ShapeTable,2,0)-1)) -> 1 | Z6: Beauty | AA6: 1 | AB6: 560/1300 | AC6: 2h/4h | AE6: 2 | AF6: Blue - Sapphire | AH6: Clean | AI6: 1
A7: Guardangel | B7: 0 | C7: Fulltune | D7: 0 | E7: Bride | F7: Beauty | H7: Gorgoneia | J7: Ancient | K7: Magic | L7: Sea | O7: Flawless | P7: Beauty | Q7: Dream | Z7: Magic | AA7: 1 | AB7: 950/2600 | AC7: 2h/4h | AE7: 3 | AF7: Yellow - Topaz | AH7: 5S - Pure | AI7: 2
A8: Guardangel | B8: 0 | C8: Obserno | D8: 0 | E8: Red Rose | F8: Beauty | H8: Piercing | J8: Ancient | K8: Chaos | L8: Nature | O8: Bride | P8: Beauty | Q8: Happy | Z8: Chaos | AA8: 1 | AB8: 1500/3900 | AC8: 3h/5h | AE8: 4 | AF8: Green - Emerald | AH8: Drop - Fine | AI8: 3
A9: Piercing | B9: 0 | C9: Swin-Jin | D9: 0 | E9: Secret Fire | F9: Magic | H9: Rebird | J9: Ancient | K9: Beauty | L9: Flame | O9: Mermaid | P9: Beauty | Q9: Magic | Z9: Happy | AA9: 1 | AB9: 6200/8000 | AC9: 3h/5h | AE9: 5 | AF9: Black - Onyx | AH9: Tri - Neat | AI9: 4
A10: Guardangel | B10: 0 | C10: Ignox | D10: 0 | E10: Flawless | F10: Dream | H10: Swin-Jin | J10: Ancient | K10: Magic | L10: Electric | O10: Amber | P10: Beauty | Q10: Soul | Z10: Dream | AA10: 1 | AB10: 8500/10800 | AC10: 4h/6h | AE10: 6 | AF10: White - Diamond | AH10: Squ - Bright | AI10: 5
A11: Fulltune | B11: 0 | C11: Ignox | D11: 0 | E11: Balloon | F11: Dream | H11: Obserno | J11: Ancient | K11: Chaos | L11: Metal | O11: Prophet | P11: Chaos | Q11: Dream | Z11: Soul | AA11: 1 | AB11: 11000/14000 | AC11: 4h/6h | AH11: Dbl S - Squared | AI11: 6
A12: Gorgoneia | B12: =IF(ISBLANK(A12),"",VLOOKUP(A12,AncientDragonTable,2,0)) -> 0 | C12: Surfaster | D12: =IF(ISBLANK(C12),"",VLOOKUP(C12,AncientDragonTable,2,0)) -> 0 | E12: Gurgle | F12: Happy | H12: Edeluxe | J12: Ancient | K12: Beauty | L12: Ice | O12: Naughty | P12: Chaos | Q12: Happy | AH12: 6S - Carved | AI12: 7
A13: Piercing | B13: =IF(ISBLANK(A13),"",VLOOKUP(A13,AncientDragonTable,2,0)) -> 0 | C13: Surfaster | D13: =IF(ISBLANK(C13),"",VLOOKUP(C13,AncientDragonTable,2,0)) -> 0 | E13: Naughty | F13: Beauty | H13: Poseadus | J13: Ancient | K13: Magic | L13: Light | O13: Underworld | P13: Chaos | Q13: Soul | S13: Crafting | T13: Evolve : | U13: Guardangel | AH13: Oval | AI13: 8
A14: Edeluxe | B14: =IF(ISBLANK(A14),"",VLOOKUP(A14,AncientDragonTable,2,0)) -> 0 | C14: Turkgon | D14: =IF(ISBLANK(C14),"",VLOOKUP(C14,AncientDragonTable,2,0)) -> 0 | E14: Amber | F14: Happy | H14: Squidus | J14: Ancient | K14: Chaos | L14: Dark | O14: Dreamcatcher | P14: Dream | Q14: Soul | S14: Gem | T14: Shape | U14: Required | V14: Done | W14: Clean | X14: Done | AH14: R Tri - Perfect | AI14: 9
A15: Piercing | B15: =IF(ISBLANK(A15),"",VLOOKUP(A15,AncientDragonTable,2,0)) -> 0 | C15: Deliriam | D15: =IF(ISBLANK(C15),"",VLOOKUP(C15,AncientDragonTable,2,0)) -> 0 | E15: Prophet | F15: Chaos | H15: Fulltune | J15: Ancient | K15: Happy | L15: Terra | O15: Balloon | P15: Happy | Q15: Dream | S15: Red - Ruby | T15: Raw | U15: 1 | W15: 0
A16: Poseadus | B16: =IF(ISBLANK(A16),"",VLOOKUP(A16,AncientDragonTable,2,0)) -> 0 | C16: Cosmoprime | D16: =IF(ISBLANK(C16),"",VLOOKUP(C16,AncientDragonTable,2,0)) -> 0 | E16: Chakra | F16: Soul | H16: Glowppy | J16: Ancient | K16: Happy | L16: Flame | O16: The Amazing | P16: Happy | Q16: Soul | S16: Red - Ruby | T16: Clean | U16: 1 | W16: 1
A17: Ankeror | B17: 0 | C17: Obserno | D17: 0 | E17: Underworld | F17: Chaos | H17: Surfaster | J17: Ancient | K17: Happy | L17: Sea | O17: Secret Fire | P17: Magic | Q17: Chaos
A18: Deliriam | B18: 0 | C18: Swin-Jin | D18: 0 | E18: Illusion | F18: Dream | H18: Deliriam | J18: Ancient | K18: Dream | L18: Nature | O18: Illusion | P18: Magic | Q18: Dream
A19: Ankeror | B19: 0 | C19: Surfaster | D19: 0 | E19: The Amazing | F19: Soul | H19: Ignox | J19: Ancient | K19: Dream | L19: Terra | O19: Gurgle | P19: Magic | Q19: Happy
A20: Ankeror | B20: 0 | C20: Recondite | D20: 0 | E20: Dreamcatcher | F20: Dream | H20: Recondite | J20: Ancient | K20: Dream | L20: Dark | O20: Chakra | P20: Magic | Q20: Soul
B21: =IF(ISBLANK(A21),"",VLOOKUP(A21,AncientDragonTable,2,0)) ->  | D21: =IF(ISBLANK(C21),"",VLOOKUP(C21,AncientDragonTable,2,0)) ->  | H21: Ankeror | J21: Ancient | K21: Soul | L21: Metal
H22: Cosmoprime | J22: Ancient | K22: Soul | L22: Light
H23: Turkgon | J23: Ancient | K23: Soul | L23: Ice

Sheet Timers
A1: Timers
A3: Now | B3: 2015-11-21T19:55:49
A4: Wait Days | B4: 0
A5: Wait Hours | B5: 0
A6: Wait Minutes | B6: 40
A7: Wait Seconds | B7: 0
A8: Wait Time | B8: =TIME(B5,B6,B7) -> 00:40:00
A9: Expiry Time | B9: =B3+B4+B8 -> 2015-11-21T20:35:49
A14: Time | B14: Description | C14: Remaining
B15: AW - Summon | C15: =IF(D15="","",IF(INT(D15)>0,INT(D15),"")) ->  | D15: =IF(ISBLANK(A15),"",A15-CurTime) -> 
B16: Breeding - Ancient World | C16: =IF(D16="","",IF(INT(D16)>0,INT(D16),"")) -> 
B17: Breeding - Mountain
B18: Breeding - Sanctury
B19: Breeding - Tree
B20: Calendar
B21: Combat League
B22: Deus Daily Shuffle
B23: Dragon Card Pack
B24: Dragon Market
B25: Farms
B26: Habitat Ready
B27: Hatchery -
B28: Hatchery -
B29: Hatchery -
B30: Quest - Battle
B31: Quest - Collect 8h 600
B32: Quest Ends
B33: Stadium Tournament
B34: Tower - Broodby's
B35: Tower - Damona's
B36: Tower - Hanzo's
B37: Tower - Jewelem's
B38: Tower - Midarian's
B39: Tower - Phaun's
B40: Tower - Ramsey's
B41: Tower - Speedy and Greedy's | C41: =IF(D41="","",IF(INT(D41)>0,INT(D41),"")) ->  | D41: =IF(ISBLANK(A41),"",A41-CurTime) -> 
B42: Tower - Winstance's
B43: Training Centre
